{"text_format":"1","workbook":"xlsx","n_sheets":22,"sheets":[" Zákon č. 200-1990  Sb. "," Zákon č. 551-1991  Sb. ","Zákon č. 126 - 1992 Sb."," Zákon č. 280-1992  Sb.  "," Zákon č. 48-1997  Sb.  ","Zákon č. 167 - 1998 Sb."," Zákon č. 258 -2000  Sb. ","Zákon č. 164 - 2001 Sb.","Zákon č. 285 - 2002 Sb."," Zákon č. 95-2004  Sb.  "," Zákon č. 96 - 2004 Sb. ","Zákon č. 378 - 2007 Sb. "," Zákon č. 296-2008  Sb. ","Zákon č. 372 - 2011 Sb.","Zákon č. 373 - 2011 Sb.","Zákon č. 374 - 2011 Sb.","Zákon č. 255 - 2012 Sb."," Zákon č. 272 - 2013  Sb.  ","Zákon č. 268 - 2014 Sb.","Zákon č. 251 - 2016 Sb."," Zákon č. 324 -2016  Sb. ","Zákon č. 65 -2017 Sb."],"not_rendered":{"charts":0,"images":0,"macros":1,"external_links":0,"defined_names":0,"comments":0,"pivot_tables":0},"unopened":[],"bounds":{"document_bytes":16777216,"sheet_cells":100000,"rows_first":2000,"rows_last":500,"rows_between":2000,"halvings":0,"cell_chars":16384,"cell_head_chars":4096},"cells_cut":0,"cells_raw":0,"read":"whole","date_system":"1900"}

{"sheet":" Zákon č. 200-1990  Sb. ","index":0,"n_rows":36,"n_cols":33,"rows_kept":36,"cut":false,"hidden":false,"merged":[[3,14,4,14],[3,15,4,15],[3,16,4,16],[3,17,4,17],[3,18,4,18],[3,19,4,19],[3,21,4,21],[3,22,4,22],[1,1,1,32],[2,1,2,32],[3,1,4,1],[3,2,4,2],[3,3,4,3],[3,4,4,4],[3,5,4,5],[3,6,4,6],[3,7,4,7],[3,8,3,10],[3,24,4,24],[3,11,3,13],[3,23,4,23],[3,31,4,31],[3,32,4,32],[3,25,4,25],[3,26,4,26],[3,27,4,27],[3,28,4,28],[3,29,4,29],[3,30,4,30]]}
[]
[null,"PŘEHLED PŘESTUPKŮ ZA ROK 2018"]
[null,"Zákon č. 200/1990 Sb.,  o přestupcích"]
[null,"§","odst. ","písm.","bod","ve znění zákona \nč. ","počet podnětů \nk zahájení řízení \no přestupku","počet odložených věcí","počet zahájených řízení o přestupku",null,null,"počet pravomocných rozhodnutí o uznání obviněného vinným ze spáchání přestupku",null,null,"počet zastavených řízení ","počet rozhodnutí o schválení dohody o narovnání","počet pravomocných rozhodnutí, kterými bylo upuštěno od uložení správního trestu ","počet pravomocných rozhodnutí, kterými byla mimořádně snížena výměra pokuty","počet napomenutí","počet  pokut","Průměrná výměra pokut (v Kč)","počet zákazů činnosti","celková délka uložených zákazů činnosti (v letech)","počet propadnutí věci nebo náhradní hodnoty","počet zveřejnění rozhodnutí o přestupku","počet omezujících opatření","počet zabrání věci nebo náhradní hodnoty","počet podaných odvolání","odvolání zamítnuto \na napadené rozhodnutí potvrzeno","odvolání vyřízeno \nv rámci autoremedury","rozhodnutí změněno","rozhodnutí zrušeno a věc vrácena k novému projednání","rozhodnutí zrušeno a řízení zastaveno"]
[null,null,null,null,null,null,null,null,"oznámení o zahájení řízení","příkaz","příkaz na místě","rozhodnutí","příkaz","příkaz na místě"]
[null,29,1,"a",null,null,null,null,1,null,null,1,null,null,1]
[null,29,1,"b"]
[null,29,1,"c"]
[null,29,1,"d",null,null,1,1]
[null,29,1,"e",null,null,1]
[null,29,1,"f"]
[null,29,1,"g",null,null,2,null,null,1,null,null,1,null,2,null,null,null,null,1,3000]
[null,29,1,"h"]
[null,29,1,"i"]
[null,29,1,"j",null,null,9,null,1,null,null,1,null,null,null,null,null,null,null,1,2000,null,null,1]
[null,29,1,"k",null,null,8]
[null,29,1,"l"]
[null,29,1,"m"]
[null,29,1,"n"]
[null,29,1,"o"]
[null,29,1,"p"]
[null,29,1,"q"]
[null,29,1,"r"]
[null,29,1,"s"]
[null,29,1,"t"]
[null,"29a",1,"a"]
[null,"29a",1,"b"]
[null,"29a",1,"c"]
[null,"29a",1,"d"]
[null,"29a",1,"e"]
[null,"29a",1,"f"]
[null,"29a",1,"g"]
[null,30,1,"a",null,null,21,21,1,3,null,2,4,null,null,null,null,null,3,4,1500]
[null,30,1,"b",null,null,4,1,null,3,null,null,2,null,1,null,null,null,null,3,1333]
[null,30,1,"c",null,null,33,43,5,7,null,8,9,null,5,null,null,null,null,16,2119,null,null,11,null,null,45]
[null,30,1,"d"]

{"sheet":" Zákon č. 551-1991  Sb. ","index":1,"n_rows":14,"n_cols":33,"rows_kept":14,"cut":false,"hidden":false,"merged":[[1,1,1,32],[2,1,2,32],[3,1,4,1],[3,2,4,2],[3,3,4,3],[3,4,4,4],[3,5,4,5],[3,6,4,6],[3,7,4,7],[3,8,3,10],[3,11,3,13],[3,14,4,14],[3,15,4,15],[3,16,4,16],[3,17,4,17],[3,18,4,18],[3,19,4,19],[3,20,4,20],[3,21,4,21],[3,22,4,22],[3,23,4,23],[3,24,4,24],[3,31,4,31],[3,32,4,32],[3,25,4,25],[3,26,4,26],[3,27,4,27],[3,28,4,28],[3,29,4,29],[3,30,4,30]]}
[]
[null,"PŘEHLED PŘESTUPKŮ ZA ROK 2018"]
[null,"Zákon č. 551/1991 Sb., o Všeobecné zdravotní pojišťovně České republiky"]
[null,"§","odst. ","písm.","bod","ve znění zákona \nč. ","počet podnětů \nk zahájení řízení \no přestupku","počet odložených věcí","počet zahájených řízení o přestupku",null,null,"počet pravomocných rozhodnutí o uznání obviněného vinným ze spáchání přestupku",null,null,"počet zastavených řízení ","počet rozhodnutí o schválení dohody o narovnání","počet pravomocných rozhodnutí, kterými bylo upuštěno od uložení správního trestu ","počet pravomocných rozhodnutí, kterými byla mimořádně snížena výměra pokuty","počet napomenutí","počet  pokut","celková výměra pokut (v Kč)","počet zákazů činnosti","celková délka uložených zákazů činnosti (v letech)","počet propadnutí věci nebo náhradní hodnoty","počet zveřejnění rozhodnutí o přestupku","počet omezujících opatření","počet zabrání věci nebo náhradní hodnoty","počet podaných odvolání","odvolání zamítnuto \na napadené rozhodnutí potvrzeno","odvolání vyřízeno \nv rámci autoremedury","rozhodnutí změněno","rozhodnutí zrušeno a věc vrácena k novému projednání","rozhodnutí zrušeno a řízení zastaveno"]
[null,null,null,null,null,null,null,null,"oznámení o zahájení řízení","příkaz","příkaz na místě","rozhodnutí","příkaz","příkaz na místě"]
[null,"23a",1,"a","1."]
[null,null,null,null,"2."]
[null,null,null,"b"]
[null,null,null,"c"]
[null,"23b",1,"a"]
[null,null,null,"b"]
[null,null,null,"c"]
[null,null,null,"d"]
[null,null,null,"e"]

{"sheet":"Zákon č. 126 - 1992 Sb.","index":2,"n_rows":6,"n_cols":33,"rows_kept":6,"cut":false,"hidden":false,"merged":[[3,27,4,27],[3,28,4,28],[3,29,4,29],[3,30,4,30],[3,4,4,4],[3,5,4,5],[3,6,4,6],[3,7,4,7],[3,8,3,10],[3,19,4,19],[3,20,4,20],[3,21,4,21],[3,22,4,22],[3,17,4,17],[1,1,1,32],[2,1,2,32],[3,1,4,1],[3,2,4,2],[3,3,4,3],[3,23,4,23],[3,11,3,13],[3,14,4,14],[3,15,4,15],[3,16,4,16],[3,18,4,18],[3,31,4,31],[3,32,4,32],[3,25,4,25],[3,26,4,26],[3,24,4,24]]}
[]
[null,"PŘEHLED PŘESTUPKŮ ZA ROK 2018"]
[null,"Zákon č. 126/1992 Sb., o ochraně znaku a názvu Červeného kříže a o Československém červeném kříži"]
[null,"§","odst. ","písm.","bod","ve znění zákona \nč. ","počet podnětů \nk zahájení řízení \no přestupku","počet odložených věcí","počet zahájených řízení o přestupku",null,null,"počet pravomocných rozhodnutí o uznání obviněného vinným ze spáchání přestupku",null,null,"počet zastavených řízení ","počet rozhodnutí o schválení dohody o narovnání","počet pravomocných rozhodnutí, kterými bylo upuštěno od uložení správního trestu ","počet pravomocných rozhodnutí, kterými byla mimořádně snížena výměra pokuty","počet napomenutí","počet  pokut","průměrná výměra pokut (v Kč)","počet zákazů činnosti","celková délka uložených zákazů činnosti (v letech)","počet propadnutí věci nebo náhradní hodnoty","počet zveřejnění rozhodnutí o přestupku","počet omezujících opatření","počet zabrání věci nebo náhradní hodnoty","počet podaných odvolání","odvolání zamítnuto \na napadené rozhodnutí potvrzeno","odvolání vyřízeno \nv rámci autoremedury","rozhodnutí změněno","rozhodnutí zrušeno a věc vrácena k novému projednání","rozhodnutí zrušeno a řízení zastaveno"]
[null,null,null,null,null,null,null,null,"oznámení o zahájení řízení","příkaz","příkaz na místě","rozhodnutí","příkaz","příkaz na místě"]
[null,2,1,null,null,null,1,null,null,1,null,null,null,null,null,null,null,null,null,1,2000]

{"sheet":" Zákon č. 280-1992  Sb.  ","index":3,"n_rows":14,"n_cols":33,"rows_kept":14,"cut":false,"hidden":false,"merged":[[1,1,1,32],[2,1,2,32],[3,1,4,1],[3,2,4,2],[3,3,4,3],[3,4,4,4],[3,5,4,5],[3,6,4,6],[3,7,4,7],[3,8,3,10],[3,11,3,13],[3,14,4,14],[3,15,4,15],[3,16,4,16],[3,17,4,17],[3,18,4,18],[3,19,4,19],[3,20,4,20],[3,21,4,21],[3,22,4,22],[3,23,4,23],[3,24,4,24],[3,31,4,31],[3,32,4,32],[3,25,4,25],[3,26,4,26],[3,27,4,27],[3,28,4,28],[3,29,4,29],[3,30,4,30]]}
[]
[null,"PŘEHLED PŘESTUPKŮ ZA ROK 2018"]
[null,"Zákon č. 280/1992 Sb., o resortních, oborových, podnikových a dalších zdravotních pojišťovnách"]
[null,"§","odst. ","písm.","bod","ve znění zákona \nč. ","počet podnětů \nk zahájení řízení \no přestupku","počet odložených věcí","počet zahájených řízení o přestupku",null,null,"počet pravomocných rozhodnutí o uznání obviněného vinným ze spáchání přestupku",null,null,"počet zastavených řízení ","počet rozhodnutí o schválení dohody o narovnání","počet pravomocných rozhodnutí, kterými bylo upuštěno od uložení správního trestu ","počet pravomocných rozhodnutí, kterými byla mimořádně snížena výměra pokuty","počet napomenutí","počet  pokut","celková výměra pokut (v Kč)","počet zákazů činnosti","celková délka uložených zákazů činnosti (v letech)","počet propadnutí věci nebo náhradní hodnoty","počet zveřejnění rozhodnutí o přestupku","počet omezujících opatření","počet zabrání věci nebo náhradní hodnoty","počet podaných odvolání","odvolání zamítnuto \na napadené rozhodnutí potvrzeno","odvolání vyřízeno \nv rámci autoremedury","rozhodnutí změněno","rozhodnutí zrušeno a věc vrácena k novému projednání","rozhodnutí zrušeno a řízení zastaveno"]
[null,null,null,null,null,null,null,null,"oznámení o zahájení řízení","příkaz","příkaz na místě","rozhodnutí","příkaz","příkaz na místě"]
[null,"22d",1,"a","1."]
[null,null,null,null,"2."]
[null,null,null,"b"]
[null,null,null,"c"]
[null,"22e",1,"a"]
[null,null,null,"b"]
[null,null,null,"c"]
[null,null,null,"d"]
[null,null,null,"e"]

{"sheet":" Zákon č. 48-1997  Sb.  ","index":4,"n_rows":15,"n_cols":33,"rows_kept":15,"cut":false,"hidden":false,"merged":[[1,1,1,32],[2,1,2,32],[3,1,4,1],[3,2,4,2],[3,3,4,3],[3,4,4,4],[3,5,4,5],[3,6,4,6],[3,7,4,7],[3,8,3,10],[3,11,3,13],[3,14,4,14],[3,15,4,15],[3,16,4,16],[3,17,4,17],[3,18,4,18],[3,19,4,19],[3,20,4,20],[3,21,4,21],[3,22,4,22],[3,23,4,23],[3,24,4,24],[3,31,4,31],[3,32,4,32],[3,25,4,25],[3,26,4,26],[3,27,4,27],[3,28,4,28],[3,29,4,29],[3,30,4,30]]}
[]
[null,"PŘEHLED PŘESTUPKŮ ZA ROK 2018"]
[null,"Zákon č. 48/1997 Sb., o veřejném zdravotním pojištění a o změně a doplnění některých souvisejících zákonů"]
[null,"§","odst. ","písm.","bod","ve znění zákona \nč. ","počet podnětů \nk zahájení řízení \no přestupku","počet odložených věcí","počet zahájených řízení o přestupku",null,null,"počet pravomocných rozhodnutí o uznání obviněného vinným ze spáchání přestupku",null,null,"počet zastavených řízení ","počet rozhodnutí o schválení dohody o narovnání","počet pravomocných rozhodnutí, kterými bylo upuštěno od uložení správního trestu ","počet pravomocných rozhodnutí, kterými byla mimořádně snížena výměra pokuty","počet napomenutí","počet  pokut","průměrná výměra pokut (v Kč)","počet zákazů činnosti","celková délka uložených zákazů činnosti (v letech)","počet propadnutí věci nebo náhradní hodnoty","počet zveřejnění rozhodnutí o přestupku","počet omezujících opatření","počet zabrání věci nebo náhradní hodnoty","počet podaných odvolání","odvolání zamítnuto \na napadené rozhodnutí potvrzeno","odvolání vyřízeno \nv rámci autoremedury","rozhodnutí změněno","rozhodnutí zrušeno a věc vrácena k novému projednání","rozhodnutí zrušeno a řízení zastaveno"]
[null,null,null,null,null,null,null,null,"oznámení o zahájení řízení","příkaz","příkaz na místě","rozhodnutí","příkaz","příkaz na místě"]
[null,32,5,null,null,"200/2017 Sb., 290/2017 Sb.",null,null,null,3,null,1,2,null,null,null,null,null,null,3,50000,null,null,null,null,null,null,1]
[null,"39q",1,"a",null,"200/2017 Sb., 290/2017 Sb."]
[null,null,null,"b",null,"200/2017 Sb., 290/2017 Sb."]
[null,null,null,"c",null,"200/2017 Sb., 290/2017 Sb."]
[null,null,null,"d",null,"200/2017 Sb., 290/2017 Sb."]
[null,"45a",1,"a"]
[null,null,null,"b"]
[null,null,null,"c"]
[null,null,null,"d"]
[null,null,null,"e"]

{"sheet":"Zákon č. 167 - 1998 Sb.","index":5,"n_rows":53,"n_cols":33,"rows_kept":53,"cut":false,"hidden":false,"merged":[[3,27,4,27],[3,28,4,28],[3,29,4,29],[3,30,4,30],[3,4,4,4],[3,5,4,5],[3,6,4,6],[3,7,4,7],[3,8,3,10],[3,19,4,19],[3,21,4,21],[3,22,4,22],[3,17,4,17],[1,1,1,32],[2,1,2,32],[3,1,4,1],[3,2,4,2],[3,3,4,3],[3,23,4,23],[3,11,3,13],[3,14,4,14],[3,15,4,15],[3,16,4,16],[3,18,4,18],[3,31,4,31],[3,32,4,32],[3,25,4,25],[3,26,4,26],[3,24,4,24]]}
[]
[null,"PŘEHLED PŘESTUPKŮ ZA ROK 2018"]
[null,"Zákon č.   167 /1998   Sb., o návykových látkách a o změně některých dalších zákonů"]
[null,"§","odst. ","písm.","bod","ve znění zákona \nč. ","počet podnětů \nk zahájení řízení \no přestupku","počet odložených věcí","počet zahájených řízení o přestupku",null,null,"počet pravomocných rozhodnutí o uznání obviněného vinným ze spáchání přestupku",null,null,"počet zastavených řízení ","počet rozhodnutí o schválení dohody o narovnání","počet pravomocných rozhodnutí, kterými bylo upuštěno od uložení správního trestu ","počet pravomocných rozhodnutí, kterými byla mimořádně snížena výměra pokuty","počet napomenutí","počet  pokut","Průměrná výměra pokut","počet zákazů činnosti","celková délka uložených zákazů činnosti (v letech)","počet propadnutí věci nebo náhradní hodnoty","počet zveřejnění rozhodnutí o přestupku","počet omezujících opatření","počet zabrání věci nebo náhradní hodnoty","počet podaných odvolání","odvolání zamítnuto \na napadené rozhodnutí potvrzeno","odvolání vyřízeno \nv rámci autoremedury","rozhodnutí změněno","rozhodnutí zrušeno a věc vrácena k novému projednání","rozhodnutí zrušeno a řízení zastaveno"]
[null,null,null,null,null,null,null,null,"oznámení o zahájení řízení","příkaz","příkaz na místě","rozhodnutí","příkaz","příkaz na místě"]
[null,36,1,"a",null,null,10]
[null,null,null,"b"]
[null,null,null,"c"]
[null,null,null,"d"]
[null,null,null,"e"]
[null,null,null,"f"]
[null,null,null,"g"]
[null,null,null,"h"]
[null,null,null,"i"]
[null,null,null,"j"]
[null,null,null,"k"]
[null,null,null,"l",null,null,null,null,1,4,null,null,4,null,null,null,null,null,null,4,{"$f":"#REF!/T17","v":{"$error":"#REF!"}},null,null,null,null,null,null,1]
[null,null,null,"m",null,null,null,4,null,null,null,null,null,null,null,null,null,null,null,null,null,null,null,null,null,null,4]
[null,null,null,"n"]
[null,null,null,"o",null,null,null,null,1,1,null,null,1,null,null,null,null,null,null,2,{"$f":"#REF!/T20","v":{"$error":"#REF!"}},null,null,null,null,null,null,1]
[null,null,null,"p",null,null,null,null,null,2,null,null,2,null,null,null,null,null,null,2,{"$f":"#REF!/T21","v":{"$error":"#REF!"}}]
[null,null,null,"q",null,null,1]
[null,null,null,"r"]
[null,null,null,"s"]
[null,null,null,"t"]
[null,null,null,"u"]
[null,null,null,"v"]
[null,null,null,"w"]
[null,null,null,"x"]
[null,null,null,"y",null,"zákona č. 167/2012",null,null,null,null,null,1,null,null,null,null,null,null,null,null,null,null,null,null,null,null,null,1,1]
[null,null,2,"a",null,null,2,null,null,2,null,null,2,null,null,null,null,null,null,2,{"$f":"#REF!/T31","v":{"$error":"#REF!"}},null,null,2]
[null,null,null,"b"]
[null,null,null,"c"]
[null,null,null,"d"]
[null,null,null,"e"]
[null,null,null,"f"]
[null,null,null,"g"]
[null,null,null,"h",null,null,5,null,4,24,null,7,17,null,1,null,null,null,null,9,37056,null,null,null,null,null,null,5,null,null,null,1]
[null,null,null,"i"]
[null,null,null,"j"]
[null,null,3,"a",null,null,null,null,null,2,null,1,1,null,null,null,null,null,null,2,{"$f":"#REF!/T41","v":{"$error":"#REF!"}}]
[null,null,null,"b",null,null,null,null,null,10,null,null,6,null,null,null,null,null,null,1,{"$f":"#REF!/T42","v":{"$error":"#REF!"}}]
[null,null,null,"c"]
[null,null,4,"a"]
[null,null,null,"b"]
[null,null,5,"a",null,null,65,null,null,79,null,78,75,null,null,null,null,null,null,78,{"$f":"#REF!/T46","v":{"$error":"#REF!"}},null,null,null,null,null,null,4,null,null,2,1]
[null,null,null,"b"]
[null,null,6]
[null,39,1,"a",null,null,1,null,null,null,null,null,1,null,null,null,null,null,null,1,800,null,null,1]
[null,null,null,"b",null,null,null,null,null,7]
[null,null,2,"a",null,null,1474,169,449,766,6968,262,866,6966,12,null,6,1,41,8053,280,null,null,744,24,null,64,1,null,null,null,1]
[null,null,null,"b",null,null,149,13,56,68,48,34,80,69,3,null,null,null,6,181,1745,null,null,77,1,1,4]
[null,null,null,"c",null,null,66,23,13,9,19,10,11,18,5,null,null,null,3,33,1188,null,null,null,null,null,6]

{"sheet":" Zákon č. 258 -2000  Sb. ","index":6,"n_rows":265,"n_cols":33,"rows_kept":265,"cut":false,"hidden":false,"merged":[[3,15,4,15],[3,16,4,16],[3,17,4,17],[3,18,4,18],[3,19,4,19],[3,21,4,21],[3,22,4,22],[3,23,4,23],[1,1,1,32],[2,1,2,32],[3,1,4,1],[3,2,4,2],[3,3,4,3],[3,4,4,4],[3,5,4,5],[3,6,4,6],[3,7,4,7],[3,8,3,10],[3,11,3,13],[3,14,4,14],[3,24,4,24],[3,31,4,31],[3,32,4,32],[3,25,4,25],[3,26,4,26],[3,27,4,27],[3,28,4,28],[3,29,4,29],[3,30,4,30]]}
[]
[null,"PŘEHLED PŘESTUPKŮ ZA ROK 2018"]
[null,"Zákon č. 258/2000 Sb., o ochraně veřejného zdraví a o změně některých souvisejících zákonů"]
[null,"§","odst. ","písm.","bod","ve znění zákona \nč. ","počet podnětů \nk zahájení řízení \no přestupku","počet odložených věcí","počet zahájených řízení o přestupku",null,null,"počet pravomocných rozhodnutí o uznání obviněného vinným ze spáchání přestupku",null,null,"počet zastavených řízení ","počet rozhodnutí o schválení dohody o narovnání","počet pravomocných rozhodnutí, kterými bylo upuštěno od uložení správního trestu ","počet pravomocných rozhodnutí, kterými byla mimořádně snížena výměra pokuty","počet napomenutí","počet  pokut","Průměrná výměra pokut (v Kč)","počet zákazů činnosti","celková délka uložených zákazů činnosti (v letech)","počet propadnutí věci nebo náhradní hodnoty","počet zveřejnění rozhodnutí o přestupku","počet omezujících opatření","počet zabrání věci nebo náhradní hodnoty","počet podaných odvolání","odvolání zamítnuto \na napadené rozhodnutí potvrzeno","odvolání vyřízeno \nv rámci autoremedury","rozhodnutí změněno","rozhodnutí zrušeno a věc vrácena k novému projednání","rozhodnutí zrušeno a řízení zastaveno"]
[null,null,null,null,null,null,null,null,"oznámení o zahájení řízení","příkaz","příkaz na místě","rozhodnutí","příkaz","příkaz na místě"]
[null,"92a",1,"a",null,null,1,1,null,2,2,null,2,1,null,null,null,1,null,3,{"$f":"#REF!/T6","v":{"$error":"#REF!"}}]
[null,null,null,"b",null,null,null,null,null,1,null,null,1,null,null,null,null,null,null,1,{"$f":"#REF!/T7","v":{"$error":"#REF!"}}]
[null,null,null,"c",null,null,2,null,null,3,1,null,3,1,null,null,null,null,1,3,{"$f":"#REF!/T8","v":{"$error":"#REF!"}}]
[null,null,2,"a"]
[null,null,null,"b"]
[null,null,null,"c"]
[null,null,3,"a",null,null,2,null,null,2,null,null,2,null,null,null,null,null,1,1,{"$f":"#REF!/T12","v":{"$error":"#REF!"}}]
[null,null,null,"b","1.",null,null,null,null,2,9,null,2,9,null,null,null,null,null,11,{"$f":"#REF!/T13","v":{"$error":"#REF!"}}]
[null,null,null,null,"2."]
[null,null,null,null,"3.",null,null,null,null,1,3,null,null,4,null,null,null,null,null,4,{"$f":"#REF!/T15","v":{"$error":"#REF!"}}]
[null,null,null,null,"4.",null,null,null,null,6,10,null,6,10,null,null,null,null,2,11,{"$f":"#REF!/T16","v":{"$error":"#REF!"}}]
[null,null,null,null,"5."]
[null,null,null,null,"6.",null,7,null,null,6,26,null,6,28,null,null,null,null,2,31,{"$f":"#REF!/T18","v":{"$error":"#REF!"}}]
[null,null,null,null,"7.",null,null,null,null,null,3,null,null,3,null,null,null,null,1,1,{"$f":"#REF!/T19","v":{"$error":"#REF!"}}]
[null,null,null,null,"8.",null,null,null,null,5,8,null,5,11,null,null,null,null,3,9,{"$f":"#REF!/T20","v":{"$error":"#REF!"}}]
[null,null,null,"c",null,null,null,null,null,1,1,null,1,1,null,null,null,null,1,1,{"$f":"#REF!/T21","v":{"$error":"#REF!"}}]
[null,null,4,"a","1.",null,1,1,3,2,23,3,2,24,null,null,null,null,1,26,{"$f":"#REF!/T22","v":{"$error":"#REF!"}}]
[null,null,null,null,"2.",null,null,null,1,3,13,1,3,13,null,null,null,null,null,16,{"$f":"#REF!/T23","v":{"$error":"#REF!"}}]
[null,null,null,null,"3.",null,null,null,null,2,4,null,2,4,null,null,null,null,null,5,{"$f":"#REF!/T24","v":{"$error":"#REF!"}}]
[null,null,null,null,"4.",null,null,null,1,1,10,1,1,10,null,null,null,null,null,4,{"$f":"#REF!/T25","v":{"$error":"#REF!"}}]
[null,null,null,null,"5.",null,null,null,null,null,8,null,null,7,null,null,null,null,null,6,{"$f":"#REF!/T26","v":{"$error":"#REF!"}}]
[null,null,null,null,"6.",null,null,null,null,null,5,null,null,5,null,null,null,null,null,5,{"$f":"#REF!/T27","v":{"$error":"#REF!"}}]
[null,null,null,null,"7.",null,1,null,null,1,2,null,1,2,null,null,null,null,null,3,{"$f":"#REF!/T28","v":{"$error":"#REF!"}}]
[null,null,null,null,"8.",null,null,null,null,1,null,null,1,null,null,null,null,null,null,1,{"$f":"#REF!/T29","v":{"$error":"#REF!"}}]
[null,null,null,null,"9.",null,null,null,null,6,27,null,6,27,28,76000]
[null,null,null,null,"10.",null,null,null,null,1,2,null,1,2,null,null,null,null,1,2,{"$f":"#REF!/T31","v":{"$error":"#REF!"}}]
[null,null,null,null,"11.",null,1,null,null,1,null,null,1,null,null,null,null,null,null,1,{"$f":"#REF!/T32","v":{"$error":"#REF!"}}]
[null,null,null,null,"12.",null,1,null,null,1,5,null,1,5,null,null,null,null,null,6,{"$f":"#REF!/T33","v":{"$error":"#REF!"}}]
[null,null,null,null,"13."]
[null,null,null,null,"14."]
[null,null,null,"b",null,null,1,null,null,1,7,null,1,7,null,null,null,null,null,8,{"$f":"#REF!/T36","v":{"$error":"#REF!"}}]
[null,null,null,"c",null,null,null,null,null,4,null,null,2]
[null,null,5,"a",null,null,null,null,null,null,2,null,null,3,null,null,null,null,null,3,{"$f":"#REF!/T38","v":{"$error":"#REF!"}}]
[null,null,null,"b",null,null,null,null,null,4,17,null,4,27,null,null,null,null,3,28,{"$f":"#REF!/T39","v":{"$error":"#REF!"}}]
[null,null,6,"a"]
[null,null,null,"b"]
[null,null,7,"a",null,null,9,null,null,3,13,null,3,13,null,null,null,null,1,12,{"$f":"#REF!/T42","v":{"$error":"#REF!"}}]
[null,null,null,"b",null,null,null,null,null,null,1,null,null,1,null,null,null,null,null,1,{"$f":"#REF!/T43","v":{"$error":"#REF!"}}]
[null,null,null,"c",null,null,12,null,4,14,51,4,14,65,null,null,null,null,3,68,{"$f":"#REF!/T44","v":{"$error":"#REF!"}}]
[null,null,null,"d",null,null,1,null,null,12,20,null,12,26,null,null,null,null,2,28,{"$f":"#REF!/T45","v":{"$error":"#REF!"}}]
[null,null,8,null,null,null,null,null,null,null,12,null,null,12,null,null,null,null,null,11,{"$f":"#REF!/T46","v":{"$error":"#REF!"}}]
[null,null,9]
[null,null,10,"a",null,null,1,null,null,7,35,null,7,43,null,null,null,null,4,41,{"$f":"#REF!/T48","v":{"$error":"#REF!"}}]
[null,null,null,"b"]
[null,null,null,"c"]
[null,null,11]
[null,"92b",1,"a",null,null,2,44,null,21,76,1,20,83,null,null,null,null,26,77,{"$f":"#REF!/T52","v":{"$error":"#REF!"}}]
[null,null,null,"b",null,null,null,1,1,29,41,2,27,44,null,null,null,null,11,59,{"$f":"#REF!/T53","v":{"$error":"#REF!"}}]
[null,null,null,"c"]
[null,null,null,"d",null,null,null,null,null,1,1,null,1,1,null,null,null,null,1,1,0]
[null,null,null,"e"]
[null,null,null,"f"]
[null,null,null,"g",null,null,null,null,null,2,5,null,2,14,null,null,null,null,4,12,{"$f":"#REF!/T58","v":{"$error":"#REF!"}}]
[null,null,null,"h",null,null,1,null,null,4,5,null,4,5,null,null,null,null,null,8,{"$f":"#REF!/T59","v":{"$error":"#REF!"}}]
[null,null,null,"i",null,null,null,null,null,null,7,null,null,7,null,null,null,null,2,5,{"$f":"#REF!/T60","v":{"$error":"#REF!"}}]
[null,null,2,"a",null,null,null,4,8,27,21,8,26,31,null,null,null,null,17,47,{"$f":"#REF!/T61","v":{"$error":"#REF!"}},null,null,null,null,null,null,3,3]
[null,null,null,"b"]
[null,null,null,"c"]
[null,null,3,null,null,null,null,null,1,null,1,1,null,1,null,null,null,null,null,2,{"$f":"#REF!/T64","v":{"$error":"#REF!"}}]
[null,null,4,null,null,null,null,null,null,null,1,null,null,1,null,null,null,null,null,2,{"$f":"#REF!/T65","v":{"$error":"#REF!"}}]
[null,null,5,"a"]
[null,null,null,"b"]
[null,null,6,null,null,null,null,null,null,null,2,null,null,2,null,null,null,null,null,2,{"$f":"#REF!/T68","v":{"$error":"#REF!"}}]
[null,null,7,null,null,null,null,null,null,2,11,null,2,11,null,null,null,null,2,11,{"$f":"#REF!/T69","v":{"$error":"#REF!"}}]
[null,"92c",1,"a",null,null,2,15,1,36,97,4,38,113,null,null,null,null,19,131,{"$f":"#REF!/T70","v":{"$error":"#REF!"}}]
[null,null,null,"b",null,null,1,null,null,1,null,null,1,null,null,null,null,null,null,1,{"$f":"#REF!/T71","v":{"$error":"#REF!"}}]
[null,null,null,"c",null,null,1,2,1,5,22,1,3,22,null,null,null,null,1,18,{"$f":"#REF!/T72","v":{"$error":"#REF!"}}]
[null,null,null,"d"]
[null,null,null,"e",null,null,null,null,null,null,1,null,null,1,null,null,null,null,null,1,{"$f":"#REF!/T74","v":{"$error":"#REF!"}}]
[null,null,null,"f",null,null,null,null,null,1,2,null,1,2,null,null,null,null,null,2,{"$f":"#REF!/T75","v":{"$error":"#REF!"}}]
[null,null,2,null,null,null,null,null,null,1,6,null,1,7,null,null,null,null,1,5,{"$f":"#REF!/T76","v":{"$error":"#REF!"}}]
[null,null,3]
[null,null,4,"a",null,null,null,null,null,4,14,null,3,15,null,null,null,null,1,11,{"$f":"#REF!/T78","v":{"$error":"#REF!"}}]
[null,null,null,"b"]
[null,null,null,"c",null,null,null,null,null,7,3,1,2,3,null,null,null,null,null,1,{"$f":"#REF!/T80","v":{"$error":"#REF!"}}]
[null,null,5]
[null,null,6,"a"]
[null,null,null,"b"]
[null,null,null,"c",null,null,null,null,null,1,null,null,1,null,null,null,null,null,1]
[null,"92d",1,null,null,null,14,2,null,47,310,1,47,307,null,null,null,null,166,184,{"$f":"#REF!/T85","v":{"$error":"#REF!"}}]
[null,null,2]
[null,null,3,"a",null,null,null,null,null,12,8,null,12,8,null,null,null,null,6,12,{"$f":"#REF!/T87","v":{"$error":"#REF!"}}]
[null,null,null,"b",null,null,1,null,null,13,10,null,12,10,null,null,null,null,2,15,{"$f":"#REF!/T88","v":{"$error":"#REF!"}}]
[null,null,null,"c",null,null,3,null,null,4,6,null,4,6,null,null,null,null,3,5,{"$f":"#REF!/T89","v":{"$error":"#REF!"}}]
[null,null,4,"a",null,null,null,null,null,1,7,null,1,7,null,null,null,null,2,6,{"$f":"#REF!/T90","v":{"$error":"#REF!"}}]
[null,null,null,"b"]
[null,null,5,"a","1.",null,null,2,null,10,44,null,10,44,null,null,null,null,8,41,{"$f":"#REF!/T92","v":{"$error":"#REF!"}}]
[null,null,null,null,"2.",null,null,null,null,null,5,null,null,5,null,null,null,null,1,4,{"$f":"#REF!/T93","v":{"$error":"#REF!"}}]
[null,null,null,"b",null,null,null,null,null,null,3,null,null,3,null,null,null,null,3]
[null,null,6,null,null,null,1,null,null,1,9,null,1,9,null,null,null,null,2,9,{"$f":"#REF!/T95","v":{"$error":"#REF!"}}]
[null,null,7,null,null,null,null,null,null,null,4,null,null,4,null,null,null,null,null,3,{"$f":"#REF!/T96","v":{"$error":"#REF!"}}]
[null,"92e",1,null,null,null,2,null,null,5,3,null,4,4,null,null,null,null,1,8,{"$f":"#REF!/T97","v":{"$error":"#REF!"}}]
[null,null,2,"a",null,null,null,null,null,4,11,null,4,11,null,null,null,null,3,2,{"$f":"#REF!/T98","v":{"$error":"#REF!"}}]
[null,null,null,"b",null,null,null,null,null,null,1,null,null,2,null,null,null,null,null,2,{"$f":"#REF!/T99","v":{"$error":"#REF!"}}]
[null,"92f",1,"a",null,null,49,8,1,109,856,1,104,921,null,null,null,null,73,919,{"$f":"#REF!/T100","v":{"$error":"#REF!"}},null,null,null,null,null,null,2,null,null,null,2]
[null,null,null,"b",null,null,4,1,null,45,147,null,45,173,null,null,null,null,14,186,{"$f":"#REF!/T101","v":{"$error":"#REF!"}}]
[null,null,null,"c",null,null,4,null,null,5,41,null,6,58,null,null,null,null,1,49,{"$f":"#REF!/T102","v":{"$error":"#REF!"}},null,null,null,null,null,null,4,null,null,null,4]
[null,null,null,"d"]
[null,null,null,"e",null,null,1,1,null,null,16,null,null,15,null,null,null,null,null,12,{"$f":"#REF!/T104","v":{"$error":"#REF!"}}]
[null,null,2,null,null,null,null,null,null,6,26,null,6,35,null,null,null,null,7,23,{"$f":"#REF!/T105","v":{"$error":"#REF!"}}]
[null,null,3]
[null,null,4,"a","1.",null,118,null,10,324,1078,19,332,1192,1,null,null,null,113,1370,{"$f":"#REF!/T107","v":{"$error":"#REF!"}},null,null,null,null,null,null,3,null,null,null,3]
[null,null,null,null,"2.",null,80,48,8,80,1222,9,78,1222,1,null,null,null,211,1076,{"$f":"#REF!/T108","v":{"$error":"#REF!"}}]
[null,null,null,null,"3.",null,null,1,null,5,61,null,5,59,null,null,null,null,5,51,{"$f":"#REF!/T109","v":{"$error":"#REF!"}}]
[null,null,null,null,"4.",null,31,1,null,182,232,2,180,196,null,null,null,null,44,211,{"$f":"#REF!/T110","v":{"$error":"#REF!"}},null,null,null,null,null,null,2,null,null,null,2]
[null,null,null,null,"5.",null,8,2,3,70,244,3,70,238,null,null,null,null,27,198,{"$f":"#REF!/T111","v":{"$error":"#REF!"}},null,null,null,null,null,null,1,null,null,null,1]
[null,null,null,null,"6.",null,12,1,null,7,152,null,10,165,null,null,null,null,14,153,{"$f":"#REF!/T112","v":{"$error":"#REF!"}}]
[null,null,null,null,"7.",null,62,null,4,310,805,7,310,830,null,null,null,null,33,845,{"$f":"#REF!/T113","v":{"$error":"#REF!"}},null,null,null,null,null,null,3,null,null,null,3]
[null,null,null,null,"8.",null,34,9,null,38,368,null,38,368,null,null,null,null,58,342,{"$f":"#REF!/T114","v":{"$error":"#REF!"}}]
[null,null,null,null,"9.",null,53,null,1,218,417,3,216,406,null,null,null,null,47,380,{"$f":"#REF!/T115","v":{"$error":"#REF!"}},null,null,null,null,null,null,1,null,null,null,1]
[null,null,null,null,"10.",null,38,17,null,100,370,1,98,365,null,null,null,null,109,329,{"$f":"#REF!/T116","v":{"$error":"#REF!"}}]
[null,null,null,null,"11.",null,7,null,null,11,95,null,12,109,null,null,null,null,4,113,{"$f":"#REF!/T117","v":{"$error":"#REF!"}}]
[null,null,null,null,"12.",null,45,null,5,174,379,7,172,378,null,null,null,null,22,426,{"$f":"#REF!/T118","v":{"$error":"#REF!"}},null,null,null,null,null,null,1,null,null,null,1]
[null,null,null,null,"13.",null,5,null,null,3,28,null,1,28,null,null,null,null,2,27,{"$f":"#REF!/T119","v":{"$error":"#REF!"}}]
[null,null,null,"b",null,null,15,null,null,308,206,null,39,197,null,null,null,null,22,160,{"$f":"#REF!/T120","v":{"$error":"#REF!"}}]
[null,null,null,"c",null,null,1,1,null,1,41,null,1,41,null,null,null,null,null,36,{"$f":"#REF!/T121","v":{"$error":"#REF!"}}]
[null,null,null,"d",null,null,1,null,null,null,2,null,null,2,null,null,null,null,1,1,{"$f":"#REF!/T122","v":{"$error":"#REF!"}}]
[null,null,null,"e",null,null,27,null,5,172,658,8,169,607,1,null,null,null,30,481,{"$f":"#REF!/T123","v":{"$error":"#REF!"}},null,null,null,null,null,null,1,null,null,null,1]
[null,null,null,"f",null,null,49,39,null,30,692,null,28,692,null,null,null,null,99,621,{"$f":"#REF!/T124","v":{"$error":"#REF!"}}]
[null,null,null,"g",null,null,null,null,null,null,1,null,null,1,null,null,null,null,null,1,{"$f":"#REF!/T125","v":{"$error":"#REF!"}}]
[null,null,null,"h",null,null,null,null,null,null,2,null,null,2,null,null,null,null,1,1,{"$f":"#REF!/T126","v":{"$error":"#REF!"}}]
[null,null,null,"i",null,null,null,null,null,null,1,null,null,4,null,null,null,null,1,3,{"$f":"#REF!/T127","v":{"$error":"#REF!"}}]
[null,null,5,"a",null,null,3,null,null,13,265,null,14,470,null,null,null,null,12,483,{"$f":"#REF!/T128","v":{"$error":"#REF!"}}]
[null,null,null,"b",null,null,5,null,null,3,42,null,3,42,null,null,null,null,null,45,{"$f":"#REF!/T129","v":{"$error":"#REF!"}}]
[null,"92g",1,null,null,null,18,12,8,38,11,16,27,11,1,null,1,null,8,46,{"$f":"#REF!/T130","v":{"$error":"#REF!"}},null,null,null,null,null,null,10,null,null,7,3]
[null,null,2,null,null,null,2,null,null,2,3,null,3,3,null,null,null,null,2,3,{"$f":"#REF!/T131","v":{"$error":"#REF!"}}]
[null,null,3,"a"]
[null,null,null,"b"]
[null,null,4,null,null,null,null,null,null,1,null,null,1,null,null,null,null,null,null,1,{"$f":"#REF!/T134","v":{"$error":"#REF!"}}]
[null,null,5,"a"]
[null,null,null,"b"]
[null,null,null,"c"]
[null,null,null,"d"]
[null,null,6]
[null,null,7,"a",null,null,null,null,null,null,1,null,null,1,null,null,null,null,null,1,{"$f":"#REF!/T140","v":{"$error":"#REF!"}}]
[null,null,null,"b"]
[null,"92h",1,"a",null,null,9,null,2,6,55,2,6,70,null,null,null,null,2,75,{"$f":"#REF!/T142","v":{"$error":"#REF!"}},null,null,null,null,null,null,1,null,null,1]
[null,null,null,"b",null,null,null,null,1,8,26,1,8,29,null,null,null,null,null,26,{"$f":"#REF!/T143","v":{"$error":"#REF!"}}]
[null,null,null,"c"]
[null,null,null,"d",null,null,null,null,null,6,6,null,6,6,null,null,null,null,null,8,{"$f":"#REF!/T145","v":{"$error":"#REF!"}}]
[null,null,null,"e",null,null,null,null,null,1,13,null,1,15,null,null,null,null,null,14,{"$f":"#REF!/T146","v":{"$error":"#REF!"}}]
[null,null,null,"f"]
[null,null,null,"g"]
[null,null,null,"h",null,null,null,null,null,null,1,null,null,1,null,null,null,null,null,1,{"$f":"#REF!/T149","v":{"$error":"#REF!"}}]
[null,null,null,"i"]
[null,null,null,"j"]
[null,null,null,"k",null,null,null,null,2,14,null,2,14,null,null,null,null,null,null,6,{"$f":"#REF!/T152","v":{"$error":"#REF!"}},null,null,null,null,null,null,1,null,null,null,1]
[null,null,2]
[null,null,3,"a",null,null,13,null,6,41,79,6,41,86,null,null,null,null,9,103,{"$f":"#REF!/T154","v":{"$error":"#REF!"}},null,null,null,null,null,null,2,1,null,null,1]
[null,null,null,"b",null,null,null,null,null,1,1,null,1,1,null,null,null,null,null,1,{"$f":"#REF!/T155","v":{"$error":"#REF!"}}]
[null,null,null,"c",null,null,null,null,null,null,3,null,null,3,null,null,null,null,null,3,{"$f":"#REF!/T156","v":{"$error":"#REF!"}}]
[null,null,null,"d",null,null,2,null,null,4,10,null,4,10,null,null,null,null,1,11,{"$f":"#REF!/T157","v":{"$error":"#REF!"}}]
[null,null,null,"e",null,null,null,null,null,3,3,null,3,4,null,null,null,null,null,6,{"$f":"#REF!/T158","v":{"$error":"#REF!"}}]
[null,null,null,"f",null,null,4,null,4,18,23,4,18,24,null,null,null,null,2,42,{"$f":"#REF!/T159","v":{"$error":"#REF!"}},null,null,null,null,null,null,3,null,null,2,1]
[null,null,null,"g",null,null,null,null,null,null,1,null,null,1,null,null,null,null,1]
[null,null,null,"h"]
[null,null,null,"i"]
[null,null,null,"j"]
[null,null,null,"k",null,null,1,null,null,null,4,null,null,4,null,null,null,null,1,3,{"$f":"#REF!/T164","v":{"$error":"#REF!"}}]
[null,null,null,"l",null,null,1,null,null,null,2,null,null,2,null,null,null,null,null,2,{"$f":"#REF!/T165","v":{"$error":"#REF!"}}]
[null,null,null,"m"]
[null,null,null,"n",null,null,null,null,null,3,1,null,3,1,null,null,null,null,null,4,{"$f":"#REF!/T167","v":{"$error":"#REF!"}}]
[null,null,null,"o"]
[null,null,null,"p"]
[null,null,4,"a",null,null,4,null,2,4,16,2,3,23,null,null,null,null,1,26,{"$f":"#REF!/T170","v":{"$error":"#REF!"}},null,null,null,null,null,null,2,null,null,1,1]
[null,null,null,"b",null,null,null,null,null,null,2,null,null,2,null,null,null,null,null,1,{"$f":"#REF!/T171","v":{"$error":"#REF!"}}]
[null,null,null,"c"]
[null,null,null,"d",null,null,null,null,null,null,6,null,null,6,null,null,null,null,null,2,{"$f":"#REF!/T173","v":{"$error":"#REF!"}}]
[null,null,null,"e",null,null,null,null,null,null,1,null,null,1,null,null,null,null,null,1,{"$f":"#REF!/T174","v":{"$error":"#REF!"}}]
[null,null,null,"f"]
[null,null,null,"g",null,null,null,null,null,2,1,null,2,1,null,null,null,null,null,2,{"$f":"#REF!/T176","v":{"$error":"#REF!"}}]
[null,null,null,"h"]
[null,null,null,"i",null,null,null,null,5,26,5,5,27,7,null,null,null,null,null,28,{"$f":"#REF!/T178","v":{"$error":"#REF!"}},null,null,null,null,null,null,null,null,null,null,2]
[null,null,null,"j",null,null,null,null,null,null,3,null,null,4,null,null,null,null,null,4,{"$f":"#REF!/T179","v":{"$error":"#REF!"}},null,null,null,null,null,null,2]
[null,null,null,"k",null,null,1,null,null,null,2,null,null,2,null,null,null,null,1,1,{"$f":"#REF!/T180","v":{"$error":"#REF!"}}]
[null,null,null,"l"]
[null,null,null,"m"]
[null,null,null,"n",null,null,6,null,2,23,56,1,24,57,null,null,null,null,null,76,{"$f":"#REF!/T183","v":{"$error":"#REF!"}}]
[null,null,null,"o",null,null,null,null,1,4,7,1,4,7,null,null,null,null,null,6,{"$f":"#REF!/T184","v":{"$error":"#REF!"}}]
[null,null,null,"p",null,null,1,null,null,7,null,null,7,null,null,null,null,null,null,2,{"$f":"#REF!/T185","v":{"$error":"#REF!"}},null,null,null,null,null,null,1,null,null,null,1]
[null,null,null,"q",null,null,null,null,null,2,1,null,2,1,null,null,null,null,1,1,{"$f":"#REF!/T186","v":{"$error":"#REF!"}}]
[null,null,null,"r"]
[null,null,null,"s",null,null,null,null,null,2,null,null,2]
[null,null,null,"t",null,null,null,null,null,5,null,null,5,null,null,null,null,null,null,2,{"$f":"#REF!/T189","v":{"$error":"#REF!"}}]
[null,null,null,"u",null,null,null,null,null,null,2,null,null,2,null,null,null,null,null,2,{"$f":"#REF!/T190","v":{"$error":"#REF!"}}]
[null,null,null,"v"]
[null,null,null,"w"]
[null,null,null,"x"]
[null,null,null,"y"]
[null,null,null,"z"]
[null,null,5,null,null,null,null,null,null,1,null,null,1,null,null,null,null,null,null,1,{"$f":"#REF!/T196","v":{"$error":"#REF!"}}]
[null,null,6,null,null,null,1,null,null,null,1,null,null,1,null,null,null,null,null,1,{"$f":"#REF!/T197","v":{"$error":"#REF!"}}]
[null,null,7,"a",null,null,1,null,1,11,22,1,11,22,null,null,null,null,3,24,{"$f":"#REF!/T198","v":{"$error":"#REF!"}},null,null,null,null,null,null,1,null,null,1]
[null,null,null,"b",null,null,null,null,null,13,38,1,14,50,null,null,null,null,6,46,{"$f":"#REF!/T199","v":{"$error":"#REF!"}},null,null,null,null,null,null,1,null,null,1]
[null,null,null,"c",null,null,null,null,null,1,1,null,1,1,null,null,null,null,null,1,{"$f":"#REF!/T200","v":{"$error":"#REF!"}}]
[null,null,null,"d",null,null,null,null,2,1,1,2,1,1,null,null,null,null,null,3,{"$f":"#REF!/T201","v":{"$error":"#REF!"}}]
[null,null,null,"e"]
[null,null,null,"f","1."]
[null,null,null,null,"2."]
[null,null,8,"a"]
[null,null,null,"b"]
[null,"92i",1,"a",null,null,1,null,null,4,6,null,4,7,null,null,null,null,1,9,{"$f":"#REF!/T207","v":{"$error":"#REF!"}}]
[null,null,null,"b"]
[null,null,2,"a",null,null,null,null,null,null,1,null,null,1,null,null,null,null,1]
[null,null,null,"b",null,null,null,null,null,1,null,null,1,null,null,null,null,null,null,1,{"$f":"#REF!/T210","v":{"$error":"#REF!"}}]
[null,null,null,"c",null,null,null,null,1,null,2,1,null,2,null,null,null,null,1,1,{"$f":"#REF!/T211","v":{"$error":"#REF!"}}]
[null,null,null,"d",null,null,2,null,3,45,42,3,45,47,null,null,null,null,18,47,{"$f":"#REF!/T212","v":{"$error":"#REF!"}},null,null,null,null,null,null,1,null,null,null,1]
[null,null,null,"e",null,null,null,null,1,null,1,1,null,1,null,null,null,null,null,2,{"$f":"#REF!/T213","v":{"$error":"#REF!"}}]
[null,null,null,"f",null,null,null,null,1,null,1,1]
[null,"92j",1,"a"]
[null,null,null,"b"]
[null,null,null,"c",null,null,5,null,14,38,130,16,38,133,1,null,null,null,46,127,{"$f":"#REF!/T217","v":{"$error":"#REF!"}},null,null,null,null,null,null,1,null,null,null,null,1]
[null,null,null,"d",null,null,null,null,null,1,1,null,1,1,null,null,null,null,null,1,{"$f":"#REF!/T218","v":{"$error":"#REF!"}}]
[null,null,null,"e",null,null,1,null,1,null,4,null,null,4,1,null,null,null,null,4,{"$f":"#REF!/T219","v":{"$error":"#REF!"}}]
[null,null,null,"f"]
[null,null,2,null,null,null,1,null,null,null,8,null,null,8,null,null,null,null,null,4,{"$f":"#REF!/T221","v":{"$error":"#REF!"}},null,null,null,null,null,null,1,null,null,null,1]
[null,"92k",1]
[null,null,2,"a",null,null,null,null,null,null,null,2,null,null,null,null,null,null,2]
[null,null,null,"b",null,null,null,null,null,null,null,null,3,null,null,null,null,null,3]
[null,null,null,"c"]
[null,null,null,"d"]
[null,null,null,"e",null,null,null,null,null,null,2,null,null,2,null,null,null,null,2]
[null,null,null,"f"]
[null,null,null,"g"]
[null,null,null,"h"]
[null,null,3,null,null,null,5,null,1,null,null,1,null,null,null,null,null,null,5,1,{"$f":"#REF!/T231","v":{"$error":"#REF!"}}]
[null,null,4,null,null,null,2,null,null,8,51,null,7,51,null,null,null,null,9,43,{"$f":"#REF!/T232","v":{"$error":"#REF!"}},null,null,null,null,null,null,1,null,null,null,1]
[null,null,5]
[null,null,6,"a"]
[null,null,null,"b",null,null,null,2,34,null,null,10,4,null,4,null,null,null,4,10,{"$f":"#REF!/T235","v":{"$error":"#REF!"}},null,null,null,null,null,null,1,1]
[null,null,null,"c",null,null,1,1,null,null,null,null,null,null,null,null,null,null,null,1,{"$f":"#REF!/T236","v":{"$error":"#REF!"}}]
[null,null,null,"d"]
[null,null,null,"e"]
[null,"92l",1,"a",null,null,1,null,null,null,4,null,null,4,null,null,null,null,null,4,{"$f":"#REF!/T239","v":{"$error":"#REF!"}}]
[null,null,null,"b",null,null,1,null,1,null,null,1,null,null,1,null,null,null,null,1,{"$f":"#REF!/T240","v":{"$error":"#REF!"}}]
[null,null,null,"c",null,null,null,null,null,1]
[null,null,2,"a"]
[null,null,null,"b"]
[null,null,null,"c"]
[null,null,null,"d"]
[null,null,null,"e"]
[null,null,3,null,null,null,null,null,null,1,2,null,null,2,null,null,null,null,null,2,{"$f":"#REF!/T247","v":{"$error":"#REF!"}}]
[null,null,4,null,null,null,1,1,null,1,9,null,1,9,null,null,null,null,3,7,{"$f":"#REF!/T248","v":{"$error":"#REF!"}}]
[null,"92m",1,"a",null,null,null,null,3,32,134,4,29,157,null,null,null,null,13,149,{"$f":"#REF!/T249","v":{"$error":"#REF!"}},null,null,null,null,null,null,1,null,null,1]
[null,null,null,"b",null,null,2,5,null,2,24,null,2,25,null,null,null,null,6,20,{"$f":"#REF!/T250","v":{"$error":"#REF!"}}]
[null,null,null,"c",null,null,6,null,1,13,67,1,16,78,null,null,null,null,2,80,{"$f":"#REF!/T251","v":{"$error":"#REF!"}}]
[null,null,null,"d",null,null,null,null,null,null,1,null,null,1,null,null,null,null,null,1,0]
[null,null,null,"e"]
[null,"92n",1,"a"]
[null,null,null,"b"]
[null,null,null,"c"]
[null,null,null,"d"]
[null,null,null,"e"]
[null,null,null,"f",null,null,null,null,null,null,1,null,null,1,null,null,null,null,null,1,{"$f":"#REF!/T259","v":{"$error":"#REF!"}}]
[null,null,null,"g"]
[null,null,null,"h"]
[null,null,null,"i"]
[null,null,null,"j"]
[null,null,null,"k",null,null,null,null,1,null,null,1,null,null,null,null,null,null,null,1,{"$f":"#REF!/T264","v":{"$error":"#REF!"}}]
[null,2]

{"sheet":"Zákon č. 164 - 2001 Sb.","index":7,"n_rows":27,"n_cols":33,"rows_kept":27,"cut":false,"hidden":false,"merged":[[3,27,4,27],[3,28,4,28],[3,29,4,29],[3,30,4,30],[3,4,4,4],[3,5,4,5],[3,6,4,6],[3,7,4,7],[3,8,3,10],[3,19,4,19],[3,20,4,20],[3,21,4,21],[3,22,4,22],[3,17,4,17],[1,1,1,32],[2,1,2,32],[3,1,4,1],[3,2,4,2],[3,3,4,3],[3,23,4,23],[3,11,3,13],[3,14,4,14],[3,15,4,15],[3,16,4,16],[3,18,4,18],[3,31,4,31],[3,32,4,32],[3,25,4,25],[3,26,4,26],[3,24,4,24]]}
[]
[null,"PŘEHLED PŘESTUPKŮ ZA ROK 2018"]
[null,"Zákon č.  164 /2001 Sb., o přírodních léčivých zdrojích, zdrojích přírodních minerálních vod, přírodních léčebných lázních a lázeňských místech a o změně některých souvisejících zákonů (lázeňský zákon)"]
[null,"§","odst. ","písm.","bod","ve znění zákona \nč. ","počet podnětů \nk zahájení řízení \no přestupku","počet odložených věcí","počet zahájených řízení o přestupku",null,null,"počet pravomocných rozhodnutí o uznání obviněného vinným ze spáchání přestupku",null,null,"počet zastavených řízení ","počet rozhodnutí o schválení dohody o narovnání","počet pravomocných rozhodnutí, kterými bylo upuštěno od uložení správního trestu ","počet pravomocných rozhodnutí, kterými byla mimořádně snížena výměra pokuty","počet napomenutí","počet  pokut","průměrná výměra pokut (v Kč)","počet zákazů činnosti","celková délka uložených zákazů činnosti (v letech)","počet propadnutí věci nebo náhradní hodnoty","počet zveřejnění rozhodnutí o přestupku","počet omezujících opatření","počet zabrání věci nebo náhradní hodnoty","počet podaných odvolání","odvolání zamítnuto \na napadené rozhodnutí potvrzeno","odvolání vyřízeno \nv rámci autoremedury","rozhodnutí změněno","rozhodnutí zrušeno a věc vrácena k novému projednání","rozhodnutí zrušeno a řízení zastaveno"]
[null,null,null,null,null,null,null,null,"oznámení o zahájení řízení","příkaz","příkaz na místě","rozhodnutí","příkaz","příkaz na místě"]
[null,41,1,"a"]
[null,null,null,"b"]
[null,null,null,"c"]
[null,null,null,"d",null,null,7,null,null,null,7,null,null,7,null,null,null,null,null,7,243]
[null,null,null,"e"]
[null,null,null,"f"]
[null,null,null,"g"]
[null,null,null,"h"]
[null,null,2,"a"]
[null,null,null,"b"]
[null,null,null,"c"]
[null,null,null,"d"]
[null,null,null,"e"]
[null,null,null,"f"]
[null,null,null,"g"]
[null,null,null,"h"]
[null,null,null,"i"]
[null,null,null,"j"]
[null,null,3,"a"]
[null,null,null,"b"]
[null,null,null,"c"]
[null,null,null,"d"]

{"sheet":"Zákon č. 285 - 2002 Sb.","index":8,"n_rows":11,"n_cols":33,"rows_kept":11,"cut":false,"hidden":false,"merged":[[3,14,4,14],[3,15,4,15],[3,11,3,13],[3,32,4,32],[3,30,4,30],[3,31,4,31],[3,26,4,26],[3,17,4,17],[3,18,4,18],[3,19,4,19],[3,20,4,20],[3,22,4,22],[3,23,4,23],[3,24,4,24],[1,1,1,32],[2,1,2,32],[3,27,4,27],[3,28,4,28],[3,29,4,29],[3,25,4,25],[3,21,4,21],[3,16,4,16],[3,8,3,10],[3,1,4,1],[3,2,4,2],[3,3,4,3],[3,4,4,4],[3,5,4,5],[3,6,4,6],[3,7,4,7]]}
[]
[null,"PŘEHLED PŘESTUPKŮ ZA ROK 2018"]
[null,"Zákon č.  285/2002 Sb., o darování, odběrech a transplantacích tkání a orgánů a o změně některých zákonů (transplantační zákon)"]
[null,"§","odst. ","písm.","bod","ve znění zákona \nč. ","počet podnětů \nk zahájení řízení \no přestupku","počet odložených věcí","počet zahájených řízení o přestupku",null,null,"počet pravomocných rozhodnutí o uznání obviněného vinným ze spáchání přestupku",null,null,"počet zastavených řízení ","počet rozhodnutí o schválení dohody o narovnání","počet pravomocných rozhodnutí, kterými bylo upuštěno od uložení správního trestu ","počet pravomocných rozhodnutí, kterými byla mimořádně snížena výměra pokuty","počet napomenutí","počet  pokut","celková výměra pokut (v Kč)","počet zákazů činnosti","celková délka uložených zákazů činnosti (v letech)","počet propadnutí věci nebo náhradní hodnoty","počet zveřejnění rozhodnutí o přestupku","počet omezujících opatření","počet zabrání věci nebo náhradní hodnoty","počet podaných odvolání","odvolání zamítnuto \na napadené rozhodnutí potvrzeno","odvolání vyřízeno \nv rámci autoremedury","rozhodnutí změněno","rozhodnutí zrušeno a věc vrácena k novému projednání","rozhodnutí zrušeno a řízení zastaveno"]
[null,null,null,null,null,null,null,null,"oznámení o zahájení řízení","příkaz","příkaz na místě","rozhodnutí","příkaz","příkaz na místě"]
[null,29,1]
[null,null,2,"a"]
[null,null,null,"b"]
[null,null,null,"c"]
[null,null,null,"d"]
[null,null,null,"e"]

{"sheet":" Zákon č. 95-2004  Sb.  ","index":9,"n_rows":21,"n_cols":33,"rows_kept":21,"cut":false,"hidden":false,"merged":[[1,1,1,32],[2,1,2,32],[3,1,4,1],[3,2,4,2],[3,3,4,3],[3,4,4,4],[3,5,4,5],[3,6,4,6],[3,7,4,7],[3,8,3,10],[3,11,3,13],[3,14,4,14],[3,15,4,15],[3,16,4,16],[3,17,4,17],[3,18,4,18],[3,19,4,19],[3,20,4,20],[3,21,4,21],[3,22,4,22],[3,23,4,23],[3,24,4,24],[3,31,4,31],[3,32,4,32],[3,25,4,25],[3,26,4,26],[3,27,4,27],[3,28,4,28],[3,29,4,29],[3,30,4,30]]}
[]
[null,"PŘEHLED PŘESTUPKŮ ZA ROK 2018"]
[null,"Zákon č. 95/2004 Sb.,  o podmínkách získávání a uznávání odborné způsobilosti a specializované způsobilosti k výkonu zdravotnického povolání lékaře, zubního lékaře a farmaceuta"]
[null,"§","odst. ","písm.","bod","ve znění zákona \nč. ","počet podnětů \nk zahájení řízení \no přestupku","počet odložených věcí","počet zahájených řízení o přestupku",null,null,"počet pravomocných rozhodnutí o uznání obviněného vinným ze spáchání přestupku",null,null,"počet zastavených řízení ","počet rozhodnutí o schválení dohody o narovnání","počet pravomocných rozhodnutí, kterými bylo upuštěno od uložení správního trestu ","počet pravomocných rozhodnutí, kterými byla mimořádně snížena výměra pokuty","počet napomenutí","počet  pokut","celková výměra pokut (v Kč)","počet zákazů činnosti","celková délka uložených zákazů činnosti (v letech)","počet propadnutí věci nebo náhradní hodnoty","počet zveřejnění rozhodnutí o přestupku","počet omezujících opatření","počet zabrání věci nebo náhradní hodnoty","počet podaných odvolání","odvolání zamítnuto \na napadené rozhodnutí potvrzeno","odvolání vyřízeno \nv rámci autoremedury","rozhodnutí změněno","rozhodnutí zrušeno a věc vrácena k novému projednání","rozhodnutí zrušeno a řízení zastaveno"]
[null,null,null,null,null,null,null,null,"oznámení o zahájení řízení","příkaz","příkaz na místě","rozhodnutí","příkaz","příkaz na místě"]
[null,"36a",1,"a"]
[null,null,null,"b"]
[null,null,null,"c"]
[null,null,null,"d"]
[null,null,null,"e"]
[null,null,2,"a"]
[null,null,null,"b"]
[null,null,null,"c"]
[null,null,null,"d"]
[null,null,null,"e"]
[null,null,null,"f"]
[null,null,null,"g"]
[null,null,null,"h"]
[null,null,null,"i"]
[null,null,null,"j"]
[null,null,null,"k"]

{"sheet":" Zákon č. 96 - 2004 Sb. ","index":10,"n_rows":18,"n_cols":33,"rows_kept":18,"cut":false,"hidden":false,"merged":[[1,1,1,32],[2,1,2,32],[3,1,4,1],[3,2,4,2],[3,3,4,3],[3,4,4,4],[3,5,4,5],[3,6,4,6],[3,7,4,7],[3,8,3,10],[3,11,3,13],[3,14,4,14],[3,15,4,15],[3,16,4,16],[3,17,4,17],[3,18,4,18],[3,19,4,19],[3,20,4,20],[3,21,4,21],[3,22,4,22],[3,23,4,23],[3,24,4,24],[3,31,4,31],[3,32,4,32],[3,25,4,25],[3,26,4,26],[3,27,4,27],[3,28,4,28],[3,29,4,29],[3,30,4,30]]}
[]
[null,"PŘEHLED PŘESTUPKŮ ZA ROK 2018"]
[null,"Zákon č. 96/2004 Sb., o podmínkách získávání a uznávání způsobilosti k výkonu nelékařských povolání a k výkonu činností souvisejících s poskytováním zdravotní péče a o změně některých souvisejících zákonů (zákon o nelékařských zdravotnických povoláních)"]
[null,"§","odst. ","písm.","bod","ve znění zákona \nč. ","počet podnětů \nk zahájení řízení \no přestupku","počet odložených věcí","počet zahájených řízení o přestupku",null,null,"počet pravomocných rozhodnutí o uznání obviněného vinným ze spáchání přestupku",null,null,"počet zastavených řízení ","počet rozhodnutí o schválení dohody o narovnání","počet pravomocných rozhodnutí, kterými bylo upuštěno od uložení správního trestu ","počet pravomocných rozhodnutí, kterými byla mimořádně snížena výměra pokuty","počet napomenutí","počet  pokut","celková výměra pokut (v Kč)","počet zákazů činnosti","celková délka uložených zákazů činnosti (v letech)","počet propadnutí věci nebo náhradní hodnoty","počet zveřejnění rozhodnutí o přestupku","počet omezujících opatření","počet zabrání věci nebo náhradní hodnoty","počet podaných odvolání","odvolání zamítnuto \na napadené rozhodnutí potvrzeno","odvolání vyřízeno \nv rámci autoremedury","rozhodnutí změněno","rozhodnutí zrušeno a věc vrácena k novému projednání","rozhodnutí zrušeno a řízení zastaveno"]
[null,null,null,null,null,null,null,null,"oznámení o zahájení řízení","příkaz","příkaz na místě","rozhodnutí","příkaz","příkaz na místě"]
[null,"89a",1,"a"]
[null,null,null,"b"]
[null,null,null,"c"]
[null,null,null,"d"]
[null,null,null,"e"]
[null,null,2,"a"]
[null,null,null,"b"]
[null,null,null,"c"]
[null,null,null,"d"]
[null,null,null,"e"]
[null,null,null,"f"]
[null,null,null,"g"]
[null,null,3]

{"sheet":"Zákon č. 378 - 2007 Sb. ","index":11,"n_rows":228,"n_cols":33,"rows_kept":228,"cut":false,"hidden":false,"merged":[[3,15,4,15],[3,16,4,16],[3,17,4,17],[3,18,4,18],[3,19,4,19],[3,21,4,21],[3,22,4,22],[3,23,4,23],[1,1,1,32],[2,1,2,32],[3,1,4,1],[3,2,4,2],[3,3,4,3],[3,4,4,4],[3,5,4,5],[3,6,4,6],[3,7,4,7],[3,8,3,10],[3,11,3,13],[3,14,4,14],[3,24,4,24],[3,31,4,31],[3,32,4,32],[3,25,4,25],[3,26,4,26],[3,27,4,27],[3,28,4,28],[3,29,4,29],[3,30,4,30]]}
[]
[null,"PŘEHLED PŘESTUPKŮ ZA ROK 2018"]
[null,"Zákon č. 378/2007 Sb., o léčivech a o změnách některých souvisejících zákonů (zákon o léčivech) "]
[null,"§","odst. ","písm.","bod","ve znění zákona \nč. ","počet podnětů \nk zahájení řízení \no přestupku","počet odložených věcí","počet zahájených řízení o přestupku",null,null,"počet pravomocných rozhodnutí o uznání obviněného vinným ze spáchání přestupku",null,null,"počet zastavených řízení ","počet rozhodnutí o schválení dohody o narovnání","počet pravomocných rozhodnutí, kterými bylo upuštěno od uložení správního trestu ","počet pravomocných rozhodnutí, kterými byla mimořádně snížena výměra pokuty","počet napomenutí","počet  pokut","průměrná výměra pokut (v Kč)","počet zákazů činnosti","celková délka uložených zákazů činnosti (v letech)","počet propadnutí věci nebo náhradní hodnoty","počet zveřejnění rozhodnutí o přestupku","počet omezujících opatření","počet zabrání věci nebo náhradní hodnoty","počet podaných odvolání","odvolání zamítnuto \na napadené rozhodnutí potvrzeno","odvolání vyřízeno \nv rámci autoremedury","rozhodnutí změněno","rozhodnutí zrušeno a věc vrácena k novému projednání","rozhodnutí zrušeno a řízení zastaveno"]
[null,null,null,null,null,null,null,null,"oznámení o zahájení řízení","příkaz","příkaz na místě","rozhodnutí","příkaz","příkaz na místě"]
[null,103,1,"a",null,"č. 36/2018 Sb.",4,null,4,8,null,14,1,null,null,null,null,null,null,15,{"$f":"#REF!/T6","v":{"$error":"#REF!"}},null,null,null,null,null,null,3,1]
[null,null,null,"b",null,"č. 36/2018 Sb.",1,null,2,9,null,3,6,null,null,null,null,null,null,7,{"$f":"#REF!/T7","v":{"$error":"#REF!"}}]
[null,null,null,"c",null,null,null,null,null,2,null,null,2,null,null,null,null,null,null,2,{"$f":"#REF!/T8","v":{"$error":"#REF!"}}]
[null,null,null,"d"]
[null,null,null,"e"]
[null,null,null,"f"]
[null,null,2,null,null,null,null,null,null,1,null,null,1,null,null,null,null,null,null,1,{"$f":"#REF!/T12","v":{"$error":"#REF!"}}]
[null,null,3,"a"]
[null,null,null,"b"]
[null,null,null,"c"]
[null,null,4,"a"]
[null,null,null,"b"]
[null,null,null,"c"]
[null,null,null,"d",null,"č. 36/2018 Sb.",4,null,null,17,null,7,11,null,null,null,null,null,null,15,{"$f":"#REF!/T19","v":{"$error":"#REF!"}},null,null,null,null,null,null,3,1]
[null,null,null,"e"]
[null,null,5,"a",null,"č. 36/2018 Sb.",4,null,4,45,null,10,31,null,null,null,null,null,null,23,{"$f":"#REF!/T21","v":{"$error":"#REF!"}},null,null,null,null,null,null,4,1]
[null,null,null,"b",null,"č. 36/2018 Sb.",2,null,null,1,null,null,1,null,null,null,null,null,null,1,{"$f":"#REF!/T22","v":{"$error":"#REF!"}}]
[null,null,null,"c",null,null,null,null,null,7,null,1,6,null,null,null,null,null,null,7,{"$f":"#REF!/T23","v":{"$error":"#REF!"}}]
[null,null,null,"d",null,"č. 36/2018 Sb.",null,null,null,1,null,3,1,null,null,null,null,null,null,4,{"$f":"#REF!/T24","v":{"$error":"#REF!"}},null,null,null,null,null,null,3,1,null,null,1]
[null,null,null,"e"]
[null,null,6,"a",null,"č. 36/2018 Sb.",null,null,null,8,null,1,6,null,1,null,null,null,null,7,{"$f":"#REF!/T26","v":{"$error":"#REF!"}},null,null,null,null,null,null,1]
[null,null,null,"b",null,"č. 36/2018 Sb.",1]
[null,null,null,"c",null,"č. 36/2018 Sb.",null,null,null,null,null,1,null,null,null,null,null,null,null,1,{"$f":"#REF!/T28","v":{"$error":"#REF!"}}]
[null,null,null,"d",null,"č. 36/2018 Sb.",3,null,1,15,null,3,12,null,1,null,null,null,null,11,{"$f":"#REF!/T29","v":{"$error":"#REF!"}},null,null,null,null,null,null,2]
[null,null,null,"e"]
[null,null,null,"f","1."]
[null,null,null,null,"2."]
[null,null,null,null,"3."]
[null,null,null,"g",null,"č. 36/2018 Sb.",null,null,7,1,null,5,null,null,null,null,null,null,null,5,{"$f":"#REF!/T34","v":{"$error":"#REF!"}},null,null,null,null,null,null,5,4]
[null,null,7,"a",null,"č. 36/2018 Sb.",null,null,2,2,null,null,2,null,null,null,null,null,null,2,{"$f":"#REF!/T35","v":{"$error":"#REF!"}}]
[null,null,null,"b",null,"č. 36/2018 Sb.",null,null,4,56,null,11,43,null,3,null,null,null,null,14,{"$f":"#REF!/T36","v":{"$error":"#REF!"}},null,null,null,null,null,null,6,2,null,null,1]
[null,null,null,"c"]
[null,null,null,"d",null,"č. 36/2018 Sb.",null,null,null,1,null,1,1,null,null,null,null,null,null,1,{"$f":"#REF!/T38","v":{"$error":"#REF!"}}]
[null,null,8]
[null,null,9,"a",null,"č. 36/2018 Sb.",null,null,3,9,null,5,5,null,null,null,null,null,null,5,{"$f":"#REF!/T40","v":{"$error":"#REF!"}},null,null,null,null,null,null,1,2]
[null,null,null,"b",null,"č. 36/2018 Sb.",null,null,null,4,null,1,2,null,null,null,null,null,null,1,{"$f":"#REF!/T41","v":{"$error":"#REF!"}}]
[null,null,null,"c",null,"č. 36/2018 Sb.",null,null,null,null,null,3,null,null,null,null,null,null,null,1,{"$f":"#REF!/T42","v":{"$error":"#REF!"}}]
[null,null,null,"d",null,"č. 36/2018 Sb.",null,null,1,14,null,5,10,null,1,null,null,null,null,3,{"$f":"#REF!/T43","v":{"$error":"#REF!"}},null,null,null,null,null,null,4,2]
[null,null,null,"e",null,"č. 36/2018 Sb.",3]
[null,null,10,"a"]
[null,null,null,"b",null,"č. 36/2018 Sb.",1,null,null,2,null,3,2,null,null,null,null,null,null,1,{"$f":"#REF!/T46","v":{"$error":"#REF!"}}]
[null,null,null,"c",null,"č. 36/2018 Sb.",null,null,null,4,null,null,3]
[null,null,null,"d",null,"č. 36/2018 Sb.",2,null,1,28,null,8,21,null,1,null,null,null,null,15,{"$f":"#REF!/T48","v":{"$error":"#REF!"}},null,null,null,null,null,null,3,2]
[null,null,null,"e",null,"č. 36/2018 Sb.",null,null,3,14,null,3,11,null,3,null,null,null,null,2,{"$f":"#REF!/T49","v":{"$error":"#REF!"}},null,null,null,null,null,null,2,2]
[null,null,null,"f",null,"č. 36/2018 Sb.",1,null,2,23,null,5,17,null,1,null,null,null,null,6,{"$f":"#REF!/T50","v":{"$error":"#REF!"}},null,null,null,null,null,null,6,1,null,null,1]
[null,null,null,"g",null,"č. 36/2018 Sb.",null,null,null,null,null,1]
[null,null,null,"h"]
[null,null,null,"i"]
[null,null,11,"a"]
[null,null,null,"b",null,"č. 36/2018 Sb.",1]
[null,null,null,"c"]
[null,null,null,"d"]
[null,null,null,"e"]
[null,null,null,"f",null,null,null,null,null,2,null,1,1]
[null,null,null,"g"]
[null,null,null,"h"]
[null,null,null,"i",null,"č. 36/2018 Sb.",null,null,null,2,null,1,1]
[null,null,12,"a",null,"č. 36/2018 Sb.",null,null,null,7,null,null,7,null,null,null,null,null,null,7,{"$f":"#REF!/T63","v":{"$error":"#REF!"}}]
[null,null,null,"b",null,null,null,null,null,3,null,null,3,null,null,null,null,null,null,2,{"$f":"#REF!/T64","v":{"$error":"#REF!"}}]
[null,null,null,"c",null,null,null,null,null,2,null,null,2,null,null,null,null,null,null,2,{"$f":"#REF!/T65","v":{"$error":"#REF!"}}]
[null,null,null,"d"]
[null,null,null,"e",null,"č. 36/2018 Sb.",null,null,null,8,null,null,8,null,null,null,null,null,null,4,{"$f":"#REF!/T67","v":{"$error":"#REF!"}}]
[null,null,13,"a"]
[null,null,null,"b"]
[null,null,null,"c"]
[null,null,null,"d"]
[null,null,null,"e"]
[null,null,14]
[null,104,1,null,null,"č. 36/2018 Sb.",null,null,null,3,null,null,1,null,null,null,null,null,null,1,{"$f":"#REF!/T74","v":{"$error":"#REF!"}}]
[null,null,2]
[null,null,3]
[null,null,4,null,null,"č. 36/2018 Sb.",null,null,null,1]
[null,null,5,"a",null,"č. 36/2018 Sb.",null,null,null,1]
[null,null,null,"b"]
[null,null,null,"c"]
[null,null,6,"a"]
[null,null,null,"b"]
[null,null,null,"c"]
[null,null,null,"d"]
[null,null,7,"a"]
[null,null,null,"b",null,"č. 36/2018 Sb.",null,null,null,null,null,1]
[null,null,null,"c"]
[null,null,null,"d"]
[null,null,null,"e"]
[null,null,null,"f"]
[null,null,null,"g"]
[null,null,null,"h"]
[null,null,null,"i"]
[null,null,8,"a"]
[null,null,null,"b"]
[null,null,null,"c"]
[null,null,null,"d"]
[null,null,null,"e"]
[null,null,9,"a"]
[null,null,null,"b"]
[null,null,10]
[null,null,11]
[null,null,12]
[null,null,13,"a"]
[null,null,null,"b"]
[null,105,1,"a"]
[null,null,null,"b"]
[null,null,null,"c"]
[null,null,2,"a"]
[null,null,null,"b"]
[null,null,null,"c"]
[null,null,null,"d"]
[null,null,null,"e",null,"č. 36/2018 Sb.",null,null,null,5,null,null,4]
[null,null,null,"f"]
[null,null,null,"g",null,null,null,null,null,null,null,1,null,null,1]
[null,null,null,"h",null,"č. 36/2018 Sb.",null,null,null,null,null,null,null,null,1]
[null,null,null,"i",null,"č. 36/2018 Sb.",null,null,null,4,null,6,4,null,null,null,null,null,null,7,{"$f":"#REF!/T117","v":{"$error":"#REF!"}},null,null,null,null,null,null,2,1]
[null,null,null,"j",null,"č. 36/2018 Sb.",null,null,null,1,null,5,10,null,1,null,null,null,null,8,{"$f":"#REF!/T118","v":{"$error":"#REF!"}},null,null,null,null,null,null,3,3]
[null,null,null,"k"]
[null,null,null,"l"]
[null,null,null,"m"]
[null,null,null,"n"]
[null,null,null,"o"]
[null,null,null,"p"]
[null,null,null,"q",null,"č. 36/2018 Sb.",null,null,null,3,null,1,3,null,1,null,null,null,null,1,{"$f":"#REF!/T125","v":{"$error":"#REF!"}},null,null,null,null,null,null,1,1]
[null,null,null,"r"]
[null,null,null,"s"]
[null,null,null,"t"]
[null,null,3]
[null,null,4,"a"]
[null,null,null,"b"]
[null,null,null,"c"]
[null,null,null,"d"]
[null,null,null,"e"]
[null,null,null,"f"]
[null,null,null,"g"]
[null,null,null,"h"]
[null,null,5,"a"]
[null,null,null,"b"]
[null,null,null,"c"]
[null,null,null,"d"]
[null,null,null,"e",null,null,null,null,null,1,null,null,1,null,null,null,null,null,null,1,{"$f":"#REF!/T142","v":{"$error":"#REF!"}}]
[null,null,null,"f"]
[null,null,null,"g"]
[null,null,null,"h"]
[null,null,null,"i"]
[null,null,null,"j"]
[null,null,null,"k"]
[null,null,null,"l"]
[null,null,null,"m"]
[null,null,null,"n"]
[null,null,null,"o"]
[null,null,null,"p"]
[null,null,null,"q"]
[null,null,null,"r"]
[null,null,null,"s"]
[null,null,null,"t"]
[null,null,null,"u"]
[null,null,null,"v"]
[null,null,null,"w"]
[null,null,null,"x"]
[null,null,null,"y"]
[null,null,6,"a"]
[null,null,null,"b"]
[null,null,null,"c"]
[null,null,null,"d"]
[null,null,null,"e"]
[null,null,null,"f"]
[null,null,null,"g"]
[null,null,null,"h"]
[null,null,null,"i"]
[null,null,null,"j"]
[null,null,null,"k"]
[null,null,null,"l"]
[null,null,null,"m"]
[null,null,null,"n"]
[null,null,null,"o"]
[null,null,7,"a"]
[null,null,null,"b"]
[null,null,8,"a"]
[null,null,null,"b"]
[null,106,1,"a"]
[null,null,null,"b"]
[null,null,2]
[null,null,3,"a","1."]
[null,null,null,null,2]
[null,null,null,null,3]
[null,null,null,null,"4."]
[null,null,null,"b"]
[null,null,null,"c"]
[null,null,null,"d"]
[null,null,null,"e"]
[null,null,null,"f"]
[null,null,4,"a"]
[null,null,null,"b"]
[null,null,null,"c"]
[null,null,null,"d"]
[null,null,null,"e"]
[null,null,5,"a"]
[null,null,null,"b"]
[null,108,1,"a",null,"č. 36/2018 Sb.",10,null,null,6,null,null,6,null,null,null,null,null,null,6,{"$f":"#REF!/T201","v":{"$error":"#REF!"}},null,null,null,null,null,null,1,null,null,null,1]
[null,null,null,"b"]
[null,null,null,"c",null,null,null,null,null,1]
[null,null,null,"d"]
[null,null,null,"e"]
[null,null,null,"f"]
[null,null,null,"g"]
[null,null,null,"h",null,null,28,3,13,5,3,9,5,null,null,null,1,null,null,16,{"$f":"#REF!/T208","v":{"$error":"#REF!"}},null,null,1]
[null,null,2,"a"]
[null,null,null,"b"]
[null,null,null,"c"]
[null,null,null,"d"]
[null,null,null,"e"]
[null,null,null,"f"]
[null,null,3,"a"]
[null,null,null,"b"]
[null,null,4]
[null,null,5,"a"]
[null,null,null,"b"]
[null,null,null,"c"]
[null,null,null,"d"]
[null,null,6,"a"]
[null,null,null,"b"]
[null,null,null,"c"]
[null,null,null,"d",null,null,null,null,null,1,null,null,1,null,null,null,null,null,null,1,{"$f":"#REF!/T225","v":{"$error":"#REF!"}}]
[null,null,null,"e"]
[null,null,7,"a"]
[null,null,null,"b"]

{"sheet":" Zákon č. 296-2008  Sb. ","index":12,"n_rows":39,"n_cols":33,"rows_kept":39,"cut":false,"hidden":false,"merged":[[1,1,1,32],[2,1,2,32],[3,1,4,1],[3,2,4,2],[3,3,4,3],[3,4,4,4],[3,5,4,5],[3,6,4,6],[3,7,4,7],[3,8,3,10],[3,11,3,13],[3,14,4,14],[3,15,4,15],[3,16,4,16],[3,17,4,17],[3,18,4,18],[3,19,4,19],[3,20,4,20],[3,21,4,21],[3,22,4,22],[3,23,4,23],[3,24,4,24],[3,31,4,31],[3,32,4,32],[3,25,4,25],[3,26,4,26],[3,27,4,27],[3,28,4,28],[3,29,4,29],[3,30,4,30]]}
[]
[null,"PŘEHLED PŘESTUPKŮ ZA ROK 2018"]
[null,"Zákon č. 296/2008 Sb., o zajištění jakosti a bezpečnosti lidských tkání a buněk určených k použití u člověka a o změně souvisejících zákonů (zákon o lidských tkáních a buňkách) "]
[null,"§","odst. ","písm.","bod","ve znění zákona \nč. ","počet podnětů \nk zahájení řízení \no přestupku","počet odložených věcí","počet zahájených řízení o přestupku",null,null,"počet pravomocných rozhodnutí o uznání obviněného vinným ze spáchání přestupku",null,null,"počet zastavených řízení ","počet rozhodnutí o schválení dohody o narovnání","počet pravomocných rozhodnutí, kterými bylo upuštěno od uložení správního trestu ","počet pravomocných rozhodnutí, kterými byla mimořádně snížena výměra pokuty","počet napomenutí","počet  pokut","celková výměra pokut (v Kč)","počet zákazů činnosti","celková délka uložených zákazů činnosti (v letech)","počet propadnutí věci nebo náhradní hodnoty","počet zveřejnění rozhodnutí o přestupku","počet omezujících opatření","počet zabrání věci nebo náhradní hodnoty","počet podaných odvolání","odvolání zamítnuto \na napadené rozhodnutí potvrzeno","odvolání vyřízeno \nv rámci autoremedury","rozhodnutí změněno","rozhodnutí zrušeno a věc vrácena k novému projednání","rozhodnutí zrušeno a řízení zastaveno"]
[null,null,null,null,null,null,null,null,"oznámení o zahájení řízení","příkaz","příkaz na místě","rozhodnutí","příkaz","příkaz na místě"]
[null,25,1]
[null,null,2,"a","1."]
[null,null,null,null,"2."]
[null,null,null,"b"]
[null,null,null,"c"]
[null,null,3]
[null,null,4,"a"]
[null,null,null,"b"]
[null,null,null,"c"]
[null,null,null,"d"]
[null,null,null,"e"]
[null,null,5,"a"]
[null,null,null,"b"]
[null,null,null,"c"]
[null,null,null,"d"]
[null,null,null,"e"]
[null,null,6,"a"]
[null,null,null,"b"]
[null,null,null,"c"]
[null,null,null,"d"]
[null,null,null,"e"]
[null,null,null,"f"]
[null,null,null,"g"]
[null,null,null,"h"]
[null,null,null,"i"]
[null,null,null,"j"]
[null,null,null,"k"]
[null,null,7,"a"]
[null,null,null,"b"]
[null,null,null,"c"]
[null,null,8]
[null,null,9]
[null,null,10]
[null,null,11]

{"sheet":"Zákon č. 372 - 2011 Sb.","index":13,"n_rows":88,"n_cols":33,"rows_kept":88,"cut":false,"hidden":false,"merged":[[3,27,4,27],[3,28,4,28],[3,29,4,29],[3,30,4,30],[3,4,4,4],[3,5,4,5],[3,6,4,6],[3,7,4,7],[3,8,3,10],[3,19,4,19],[3,21,4,21],[3,22,4,22],[3,17,4,17],[1,1,1,32],[2,1,2,32],[3,1,4,1],[3,2,4,2],[3,3,4,3],[3,23,4,23],[3,11,3,13],[3,14,4,14],[3,15,4,15],[3,16,4,16],[3,18,4,18],[3,31,4,31],[3,32,4,32],[3,25,4,25],[3,26,4,26],[3,24,4,24]]}
[]
[null,"PŘEHLED PŘESTUPKŮ ZA ROK 2018"]
[null,"Zákon č.  372/2011Sb., o zdravotních službách a podmínkách jejich poskytování (zákon o zdravotních službách)"]
[null,"§","odst. ","písm.","bod","ve znění zákona \nč. ","počet podnětů \nk zahájení řízení \no přestupku","počet odložených věcí","počet zahájených řízení o přestupku",null,null,"počet pravomocných rozhodnutí o uznání obviněného vinným ze spáchání přestupku",null,null,"počet zastavených řízení ","počet rozhodnutí o schválení dohody o narovnání","počet pravomocných rozhodnutí, kterými bylo upuštěno od uložení správního trestu ","počet pravomocných rozhodnutí, kterými byla mimořádně snížena výměra pokuty","počet napomenutí","počet  pokut","průměrná výměra pokut (v Kč)","počet zákazů činnosti","celková délka uložených zákazů činnosti (v letech)","počet propadnutí věci nebo náhradní hodnoty","počet zveřejnění rozhodnutí o přestupku","počet omezujících opatření","počet zabrání věci nebo náhradní hodnoty","počet podaných odvolání","odvolání zamítnuto \na napadené rozhodnutí potvrzeno","odvolání vyřízeno \nv rámci autoremedury","rozhodnutí změněno","rozhodnutí zrušeno a věc vrácena k novému projednání","rozhodnutí zrušeno a řízení zastaveno"]
[null,null,null,null,null,null,null,null,"oznámení o zahájení řízení","příkaz","příkaz na místě","rozhodnutí","příkaz","příkaz na místě"]
[null,114,1,"a",null,null,1,1]
[null,null,null,"b"]
[null,null,null,"c"]
[null,null,null,"d"]
[null,null,null,"e"]
[null,null,null,"f"]
[null,null,null,"g"]
[null,null,null,"h"]
[null,null,null,"i"]
[null,null,null,"j"]
[null,null,null,"k",null,null,6,null,3,2,null,null,2,null,3,null,null,null,null,2,{"$f":"#REF!/T16","v":{"$error":"#REF!"}}]
[null,115,1,"a",null,null,4,1,1,6,null,5,3,null,null,null,null,null,null,7,{"$f":"#REF!/T17","v":{"$error":"#REF!"}},null,null,null,null,null,null,2,null,null,null,1]
[null,null,null,"b"]
[null,null,null,"c",null,null,2]
[null,null,null,"d"]
[null,null,null,"e"]
[null,null,null,"f"]
[null,null,null,"g"]
[null,null,null,"h"]
[null,null,null,"i"]
[null,null,2]
[null,116,1,"a"]
[null,null,null,"b"]
[null,null,null,"c",null,null,5,null,null,null,2,null,null,null,null,null,null,null,null,2,{"$f":"#REF!/T29","v":{"$error":"#REF!"}}]
[null,null,null,"d"]
[null,117,1,"a",null,null,3,null,6,2,null,6,2,null,null,null,null,null,null,8,{"$f":"#REF!/T31","v":{"$error":"#REF!"}},null,null,null,null,null,null,2,null,null,null,1]
[null,null,null,"b",null,null,4,1,3,4,1,4,3,1,null,null,null,null,null,8,{"$f":"#REF!/T32","v":{"$error":"#REF!"}}]
[null,null,null,"c",null,null,null,null,null,2,null,null,2,null,null,null,null,null,null,2,{"$f":"#REF!/T33","v":{"$error":"#REF!"}}]
[null,null,null,"d",null,null,null,null,null,1,null,null,1,null,null,null,null,null,null,1,{"$f":"#REF!/T34","v":{"$error":"#REF!"}}]
[null,null,null,"e",null,null,9,1,4,59,null,5,58,null,null,null,null,null,null,54,{"$f":"#REF!/T35","v":{"$error":"#REF!"}},null,null,null,null,null,null,2]
[null,null,null,"f",null,null,null,null,null,1,null,null,1,null,null,null,null,null,null,1,{"$f":"#REF!/T36","v":{"$error":"#REF!"}}]
[null,null,null,"g",null,null,38,null,null,null,null,null,null,240,null,null,null,null,null,240,{"$f":"#REF!/T37","v":{"$error":"#REF!"}}]
[null,null,null,"h"]
[null,null,null,"i"]
[null,null,null,"j"]
[null,null,null,"k"]
[null,null,null,"l"]
[null,null,null,"m"]
[null,null,null,"n"]
[null,null,null,"o"]
[null,null,null,"p"]
[null,null,null,"q",null,null,null,null,1,3,null,2,2,null,null,null,null,null,null,4,{"$f":"#REF!/T47","v":{"$error":"#REF!"}}]
[null,null,null,"r",null,null,null,null,1,4,null,2,3,null,null,null,null,null,null,5,{"$f":"#REF!/T48","v":{"$error":"#REF!"}},null,null,null,null,null,null,1]
[null,null,null,"s",null,null,null,1]
[null,null,null,"t"]
[null,null,null,"u",null,null,1,null,null,1,null,null,1,null,null,null,null,null,1]
[null,null,null,"v"]
[null,null,null,"w"]
[null,null,2,"a"]
[null,null,null,"b"]
[null,null,null,"c"]
[null,null,null,"d"]
[null,null,null,"e"]
[null,null,null,"f"]
[null,null,null,"g"]
[null,null,null,"h"]
[null,null,null,"i"]
[null,null,null,"j"]
[null,null,null,"k"]
[null,null,null,"l"]
[null,null,null,"m"]
[null,null,null,"n"]
[null,null,null,"o"]
[null,null,3,"a",null,null,2,1,null,2,null,1,1,null,null,null,null,null,null,2,{"$f":"#REF!/T69","v":{"$error":"#REF!"}}]
[null,null,null,"b",null,null,1,null,2,1,null,null,1,null,2,null,null,null,1,null,null,null,null,null,null,null,null,1,null,null,null,1]
[null,null,null,"c",null,null,1,null,null,2,null,1,1,null,null,null,null,null,null,2,{"$f":"#REF!/T71","v":{"$error":"#REF!"}}]
[null,null,null,"d",null,null,1,null,1,1,null,1,1,null,1,null,null,null,null,2,{"$f":"#REF!/T72","v":{"$error":"#REF!"}},null,null,null,null,null,null,1,null,null,null,null,1]
[null,null,null,"e",null,null,5,null,1,9,null,2,7,null,1,null,null,null,null,9,{"$f":"#REF!/T73","v":{"$error":"#REF!"}},null,null,null,null,null,null,3,null,null,null,2,1]
[null,null,null,"f"]
[null,null,null,"g"]
[null,null,null,"h",null,null,null,1]
[null,null,null,"i",null,null,null,null,null,null,null,1,null,null,null,null,null,null,null,1,40000]
[null,null,null,"j"]
[null,null,null,"k"]
[null,null,null,"l"]
[null,null,null,"m"]
[null,null,null,"n"]
[null,null,null,"o"]
[null,null,null,"p"]
[null,null,null,"q",null,null,null,null,1,4,null,2,3,null,null,null,null,null,null,5,{"$f":"#REF!/T85","v":{"$error":"#REF!"}}]
[null,null,null,"r"]
[null,null,null,"s",null,null,null,null,1,1,null,3,null,null,null,null,null,null,null,2,{"$f":"#REF!/T87","v":{"$error":"#REF!"}}]
[null,null,null,"t"]

{"sheet":"Zákon č. 373 - 2011 Sb.","index":14,"n_rows":61,"n_cols":33,"rows_kept":61,"cut":false,"hidden":false,"merged":[[3,27,4,27],[3,28,4,28],[3,29,4,29],[3,30,4,30],[3,4,4,4],[3,5,4,5],[3,6,4,6],[3,7,4,7],[3,8,3,10],[3,19,4,19],[3,21,4,21],[3,22,4,22],[3,17,4,17],[1,1,1,32],[2,1,2,32],[3,1,4,1],[3,2,4,2],[3,3,4,3],[3,23,4,23],[3,11,3,13],[3,14,4,14],[3,15,4,15],[3,16,4,16],[3,18,4,18],[3,31,4,31],[3,32,4,32],[3,25,4,25],[3,26,4,26],[3,24,4,24]]}
[]
[null,"PŘEHLED PŘESTUPKŮ ZA ROK 2018"]
[null,"Zákon č. 373/2011 Sb., o specifických zdravotních službách"]
[null,"§","odst. ","písm.","bod","ve znění zákona \nč. ","počet podnětů \nk zahájení řízení \no přestupku","počet odložených věcí","počet zahájených řízení o přestupku",null,null,"počet pravomocných rozhodnutí o uznání obviněného vinným ze spáchání přestupku",null,null,"počet zastavených řízení ","počet rozhodnutí o schválení dohody o narovnání","počet pravomocných rozhodnutí, kterými bylo upuštěno od uložení správního trestu ","počet pravomocných rozhodnutí, kterými byla mimořádně snížena výměra pokuty","počet napomenutí","počet  pokut","průměrná výměra pokut (v Kč)","počet zákazů činnosti","celková délka uložených zákazů činnosti (v letech)","počet propadnutí věci nebo náhradní hodnoty","počet zveřejnění rozhodnutí o přestupku","počet omezujících opatření","počet zabrání věci nebo náhradní hodnoty","počet podaných odvolání","odvolání zamítnuto \na napadené rozhodnutí potvrzeno","odvolání vyřízeno \nv rámci autoremedury","rozhodnutí změněno","rozhodnutí zrušeno a věc vrácena k novému projednání","rozhodnutí zrušeno a řízení zastaveno"]
[null,null,null,null,null,null,null,null,"oznámení o zahájení řízení","příkaz","příkaz na místě","rozhodnutí","příkaz","příkaz na místě"]
[null,90,1,"a"]
[null,null,null,"b"]
[null,null,null,"c","1."]
[null,null,null,null,"2."]
[null,null,null,null,"3."]
[null,null,null,null,"4."]
[null,null,null,"d","1."]
[null,null,null,null,"2."]
[null,null,null,null,"3."]
[null,null,null,"e"]
[null,null,null,"f"]
[null,null,null,"g"]
[null,null,null,"h"]
[null,null,null,"i"]
[null,null,null,"j"]
[null,null,null,"k",null,null,1,null,1,1,null,3,null,null,null,null,null,null,null,3,23333,null,null,null,null,null,null,1,null,null,1]
[null,null,null,"l",null,null,2,1,1,null,null,null,null,null,1]
[null,null,null,"m",null,null,2,null,null,10,null,1,8,null,null,null,null,null,1,8,{"$f":"#REF!/T23","v":{"$error":"#REF!"}}]
[null,null,null,"n"]
[null,null,null,"o"]
[null,null,null,"p"]
[null,null,2,"a"]
[null,null,null,"b"]
[null,null,null,"c"]
[null,null,3,"a"]
[null,null,null,"b"]
[null,null,null,"c"]
[null,null,null,"d"]
[null,null,null,"e"]
[null,null,null,"f"]
[null,null,null,"g"]
[null,null,null,"h"]
[null,null,null,"i"]
[null,null,null,"j"]
[null,null,4,"a"]
[null,null,null,"b"]
[null,null,null,"c","1."]
[null,null,null,null,"2."]
[null,null,null,null,"3."]
[null,null,null,"d"]
[null,null,null,"e"]
[null,null,5,"a"]
[null,null,null,"b"]
[null,null,null,"c"]
[null,null,null,"d"]
[null,null,null,"e"]
[null,null,6,"a"]
[null,null,null,"b"]
[null,null,null,"c"]
[null,null,null,"d"]
[null,39,1]
[null,null,2,"a"]
[null,null,null,"b"]
[null,null,null,"c"]
[null,null,null,"d"]
[null,91,2,"b",null,null,2,null,null,2,null,null,2,null,null,null,null,null,2]

{"sheet":"Zákon č. 374 - 2011 Sb.","index":15,"n_rows":9,"n_cols":33,"rows_kept":9,"cut":false,"hidden":false,"merged":[[3,27,4,27],[3,28,4,28],[3,29,4,29],[3,30,4,30],[3,4,4,4],[3,5,4,5],[3,6,4,6],[3,7,4,7],[3,8,3,10],[3,19,4,19],[3,20,4,20],[3,21,4,21],[3,22,4,22],[3,17,4,17],[1,1,1,32],[2,1,2,32],[3,1,4,1],[3,2,4,2],[3,3,4,3],[3,23,4,23],[3,11,3,13],[3,14,4,14],[3,15,4,15],[3,16,4,16],[3,18,4,18],[3,31,4,31],[3,32,4,32],[3,25,4,25],[3,26,4,26],[3,24,4,24]]}
[]
[null,"PŘEHLED PŘESTUPKŮ ZA ROK 2018"]
[null,"Zákon č.   374/ 2011  Sb., o zdravotnické záchranné službě"]
[null,"§","odst. ","písm.","bod","ve znění zákona \nč. ","počet podnětů \nk zahájení řízení \no přestupku","počet odložených věcí","počet zahájených řízení o přestupku",null,null,"počet pravomocných rozhodnutí o uznání obviněného vinným ze spáchání přestupku",null,null,"počet zastavených řízení ","počet rozhodnutí o schválení dohody o narovnání","počet pravomocných rozhodnutí, kterými bylo upuštěno od uložení správního trestu ","počet pravomocných rozhodnutí, kterými byla mimořádně snížena výměra pokuty","počet napomenutí","počet  pokut","celková výměra pokut (v Kč)","počet zákazů činnosti","celková délka uložených zákazů činnosti (v letech)","počet propadnutí věci nebo náhradní hodnoty","počet zveřejnění rozhodnutí o přestupku","počet omezujících opatření","počet zabrání věci nebo náhradní hodnoty","počet podaných odvolání","odvolání zamítnuto \na napadené rozhodnutí potvrzeno","odvolání vyřízeno \nv rámci autoremedury","rozhodnutí změněno","rozhodnutí zrušeno a věc vrácena k novému projednání","rozhodnutí zrušeno a řízení zastaveno"]
[null,null,null,null,null,null,null,null,"oznámení o zahájení řízení","příkaz","příkaz na místě","rozhodnutí","příkaz","příkaz na místě"]
[null,25,1]
[null,26,1,"a"]
[null,null,null,"b"]
[null,null,2]

{"sheet":"Zákon č. 255 - 2012 Sb.","index":16,"n_rows":7,"n_cols":33,"rows_kept":7,"cut":false,"hidden":false,"merged":[[3,27,4,27],[3,28,4,28],[3,29,4,29],[3,30,4,30],[3,4,4,4],[3,5,4,5],[3,6,4,6],[3,7,4,7],[3,8,3,10],[3,19,4,19],[3,20,4,20],[3,21,4,21],[3,22,4,22],[3,17,4,17],[1,1,1,32],[2,1,2,32],[3,1,4,1],[3,2,4,2],[3,3,4,3],[3,23,4,23],[3,11,3,13],[3,14,4,14],[3,15,4,15],[3,16,4,16],[3,18,4,18],[3,31,4,31],[3,32,4,32],[3,25,4,25],[3,26,4,26],[3,24,4,24]]}
[]
[null,"PŘEHLED PŘESTUPKŮ ZA ROK 2018"]
[null,"Zákon č. 255/2012 Sb., o kontrole (kontrolní řád)"]
[null,"§","odst. ","písm.","bod","ve znění zákona \nč. ","počet podnětů \nk zahájení řízení \no přestupku","počet odložených věcí","počet zahájených řízení o přestupku",null,null,"počet pravomocných rozhodnutí o uznání obviněného vinným ze spáchání přestupku",null,null,"počet zastavených řízení ","počet rozhodnutí o schválení dohody o narovnání","počet pravomocných rozhodnutí, kterými bylo upuštěno od uložení správního trestu ","počet pravomocných rozhodnutí, kterými byla mimořádně snížena výměra pokuty","počet napomenutí","počet  pokut","průměrná výměra pokut (v Kč)","počet zákazů činnosti","celková délka uložených zákazů činnosti (v letech)","počet propadnutí věci nebo náhradní hodnoty","počet zveřejnění rozhodnutí o přestupku","počet omezujících opatření","počet zabrání věci nebo náhradní hodnoty","počet podaných odvolání","odvolání zamítnuto \na napadené rozhodnutí potvrzeno","odvolání vyřízeno \nv rámci autoremedury","rozhodnutí změněno","rozhodnutí zrušeno a věc vrácena k novému projednání","rozhodnutí zrušeno a řízení zastaveno"]
[null,null,null,null,null,null,null,null,"oznámení o zahájení řízení","příkaz","příkaz na místě","rozhodnutí","příkaz","příkaz na místě"]
[null,15,1,"a",null,null,null,null,null,5,null,2,4,null,null,null,null,null,null,6,21667,null,null,null,null,null,null,1,1]
[null,null,null,"b"]

{"sheet":" Zákon č. 272 - 2013  Sb.  ","index":17,"n_rows":42,"n_cols":33,"rows_kept":42,"cut":false,"hidden":false,"merged":[[3,15,4,15],[3,16,4,16],[3,17,4,17],[3,18,4,18],[3,19,4,19],[3,21,4,21],[3,22,4,22],[3,23,4,23],[1,1,1,32],[2,1,2,32],[3,1,4,1],[3,2,4,2],[3,3,4,3],[3,4,4,4],[3,5,4,5],[3,6,4,6],[3,7,4,7],[3,8,3,10],[3,11,3,13],[3,14,4,14],[3,24,4,24],[3,31,4,31],[3,32,4,32],[3,25,4,25],[3,26,4,26],[3,27,4,27],[3,28,4,28],[3,29,4,29],[3,30,4,30]]}
[]
[null,"PŘEHLED PŘESTUPKŮ ZA ROK 2018"]
[null,"Zákon č. 272/2013 Sb., o prekursorech drog"]
[null,"§","odst. ","písm.","bod","ve znění zákona \nč. ","počet podnětů \nk zahájení řízení \no přestupku","počet odložených věcí","počet zahájených řízení o přestupku",null,null,"počet pravomocných rozhodnutí o uznání obviněného vinným ze spáchání přestupku",null,null,"počet zastavených řízení ","počet rozhodnutí o schválení dohody o narovnání","počet pravomocných rozhodnutí, kterými bylo upuštěno od uložení správního trestu ","počet pravomocných rozhodnutí, kterými byla mimořádně snížena výměra pokuty","počet napomenutí","počet  pokut","průměrná výměra pokut (v Kč)","počet zákazů činnosti","celková délka uložených zákazů činnosti (v letech)","počet propadnutí věci nebo náhradní hodnoty","počet zveřejnění rozhodnutí o přestupku","počet omezujících opatření","počet zabrání věci nebo náhradní hodnoty","počet podaných odvolání","odvolání zamítnuto \na napadené rozhodnutí potvrzeno","odvolání vyřízeno \nv rámci autoremedury","rozhodnutí změněno","rozhodnutí zrušeno a věc vrácena k novému projednání","rozhodnutí zrušeno a řízení zastaveno"]
[null,null,null,null,null,null,null,null,"oznámení o zahájení řízení","příkaz","příkaz na místě","rozhodnutí","příkaz","příkaz na místě"]
[null,40,1,"a",null,null,null,null,null,1,null,null,1]
[null,null,null,"b"]
[null,null,null,"c"]
[null,null,2,"a"]
[null,null,null,"b"]
[null,null,null,"c"]
[null,null,null,"d"]
[null,null,null,"e"]
[null,null,null,"f"]
[null,null,null,"g"]
[null,null,null,"h"]
[null,null,null,"i"]
[null,null,3,"a",null,null,null,null,null,5,null,null,5,null,null,null,null,null,null,2,{"$f":"#REF!/T18","v":{"$error":"#REF!"}}]
[null,null,null,"b"]
[null,null,null,"c"]
[null,null,null,"d"]
[null,null,null,"e"]
[null,null,null,"f"]
[null,null,null,"g"]
[null,null,null,"h"]
[null,null,null,"i"]
[null,null,null,"j"]
[null,null,null,"k"]
[null,null,null,"l"]
[null,null,null,"m"]
[null,null,null,"n",null,null,null,null,null,2,null,null,2]
[null,null,null,"o"]
[null,null,null,"p"]
[null,null,null,"q",null,null,null,null,null,5,null,null,5,null,null,null,null,null,null,3,{"$f":"#REF!/T34","v":{"$error":"#REF!"}}]
[null,null,null,"r"]
[null,null,null,"s"]
[null,null,null,"t"]
[null,null,null,"u",null,"183/2017",8,null,null,1,null,null,7,null,null,null,null,null,null,8,{"$f":"#REF!/T38","v":{"$error":"#REF!"}}]
[null,null,null,"v"]
[null,null,null,"w",null,"183/2017",8,null,null,1,null,null,7,null,null,null,null,null,null,8,{"$f":"#REF!/T40","v":{"$error":"#REF!"}}]
[null,null,null,"x",null,"183/2017",4,null,null,null,null,null,4,null,null,null,null,null,null,4,{"$f":"#REF!/T41","v":{"$error":"#REF!"}}]
[null,null,null,"y",null,"183/2017",8,null,null,1,null,null,7,null,null,null,null,null,null,8,{"$f":"#REF!/T42","v":{"$error":"#REF!"}}]

{"sheet":"Zákon č. 268 - 2014 Sb.","index":18,"n_rows":60,"n_cols":33,"rows_kept":60,"cut":false,"hidden":false,"merged":[[3,27,4,27],[3,28,4,28],[3,29,4,29],[3,30,4,30],[3,4,4,4],[3,5,4,5],[3,6,4,6],[3,7,4,7],[3,8,3,10],[3,19,4,19],[3,20,4,20],[3,21,4,21],[3,22,4,22],[3,17,4,17],[1,1,1,32],[2,1,2,32],[3,1,4,1],[3,2,4,2],[3,3,4,3],[3,23,4,23],[3,11,3,13],[3,14,4,14],[3,15,4,15],[3,16,4,16],[3,18,4,18],[3,31,4,31],[3,32,4,32],[3,25,4,25],[3,26,4,26],[3,24,4,24]]}
[]
[null,"PŘEHLED PŘESTUPKŮ ZA ROK 2018"]
[null,"Zákon č. 268/2014   Sb., o zdravotnických prostředcích a o změně zákona č. 634/2004 Sb., o správních poplatcích, ve znění pozdějších předpisů"]
[null,"§","odst. ","písm.","bod","ve znění zákona \nč. ","počet podnětů \nk zahájení řízení \no přestupku","počet odložených věcí","počet zahájených řízení o přestupku",null,null,"počet pravomocných rozhodnutí o uznání obviněného vinným ze spáchání přestupku",null,null,"počet zastavených řízení ","počet rozhodnutí o schválení dohody o narovnání","počet pravomocných rozhodnutí, kterými bylo upuštěno od uložení správního trestu ","počet pravomocných rozhodnutí, kterými byla mimořádně snížena výměra pokuty","počet napomenutí","počet  pokut","průměrná výměra pokut (v Kč)","počet zákazů činnosti","celková délka uložených zákazů činnosti (v letech)","počet propadnutí věci nebo náhradní hodnoty","počet zveřejnění rozhodnutí o přestupku","počet omezujících opatření","počet zabrání věci nebo náhradní hodnoty","počet podaných odvolání","odvolání zamítnuto \na napadené rozhodnutí potvrzeno","odvolání vyřízeno \nv rámci autoremedury","rozhodnutí změněno","rozhodnutí zrušeno a věc vrácena k novému projednání","rozhodnutí zrušeno a řízení zastaveno"]
[null,null,null,null,null,null,null,null,"oznámení o zahájení řízení","příkaz","příkaz na místě","rozhodnutí","příkaz","příkaz na místě"]
[null,81,1]
[null,null,2]
[null,null,3]
[null,null,4]
[null,null,5]
[null,null,6]
[null,82,1]
[null,83,1,null,null,null,5]
[null,null,2,"a"]
[null,null,null,"b"]
[null,84,1,"a"]
[null,null,null,"b"]
[null,null,null,"c"]
[null,85,1,"a",null,null,1]
[null,null,null,"b"]
[null,null,null,"c"]
[null,null,null,"d"]
[null,86,1,null,null,null,2]
[null,null,2,"a",null,null,3]
[null,null,null,"b",null,null,6]
[null,null,3,"a"]
[null,null,null,"b"]
[null,null,null,"c"]
[null,null,null,"d"]
[null,null,null,"e"]
[null,null,4,"a",null,null,1]
[null,null,null,"b"]
[null,null,null,"c",null,null,1]
[null,null,null,"d"]
[null,null,5,"a"]
[null,null,null,"b"]
[null,null,null,"c"]
[null,87,1]
[null,null,2]
[null,null,3]
[null,88,1]
[null,null,2]
[null,89,1,"a",null,null,10]
[null,null,null,"b",null,null,7]
[null,null,null,"c",null,null,7,null,null,4,null,null,3,null,null,null,null,null,null,3,13333]
[null,null,null,"d",null,null,7]
[null,null,null,"e","1.",null,7]
[null,null,null,null,"2.",null,7]
[null,null,null,null,"3.",null,7]
[null,90,1,null,null,null,1,null,null,1,null,null,1,null,null,null,null,null,null,1,15000]
[null,null,2,null,null,null,3]
[null,null,3]
[null,null,4]
[null,null,5]
[null,91,1]
[null,null,2]
[null,null,3]
[null,null,4]
[null,null,5]
[null,null,6]

{"sheet":"Zákon č. 251 - 2016 Sb.","index":19,"n_rows":7,"n_cols":33,"rows_kept":7,"cut":false,"hidden":false,"merged":[[1,1,1,32],[2,1,2,32],[3,1,4,1],[3,2,4,2],[3,3,4,3],[3,4,4,4],[3,5,4,5],[3,6,4,6],[3,7,4,7],[3,8,3,10],[3,11,3,13],[3,14,4,14],[3,15,4,15],[3,16,4,16],[3,17,4,17],[3,18,4,18],[3,19,4,19],[3,20,4,20],[3,21,4,21],[3,22,4,22],[3,23,4,23],[3,24,4,24],[3,31,4,31],[3,32,4,32],[3,25,4,25],[3,26,4,26],[3,27,4,27],[3,28,4,28],[3,29,4,29],[3,30,4,30]]}
[]
[null,"PŘEHLED PŘESTUPKŮ ZA ROK 2018"]
[null,"Zákon č. 251/2016 Sb., o některých přestupcích "]
[null,"§","odst. ","písm.","bod","ve znění zákona \nč. ","počet podnětů \nk zahájení řízení \no přestupku","počet odložených věcí","počet zahájených řízení o přestupku",null,null,"počet pravomocných rozhodnutí o uznání obviněného vinným ze spáchání přestupku",null,null,"počet zastavených řízení ","počet rozhodnutí o schválení dohody o narovnání","počet pravomocných rozhodnutí, kterými bylo upuštěno od uložení správního trestu ","počet pravomocných rozhodnutí, kterými byla mimořádně snížena výměra pokuty","počet napomenutí","počet  pokut","průměrná výměra pokut (v Kč)","počet zákazů činnosti","celková délka uložených zákazů činnosti (v letech)","počet propadnutí věci nebo náhradní hodnoty","počet zveřejnění rozhodnutí o přestupku","počet omezujících opatření","počet zabrání věci nebo náhradní hodnoty","počet podaných odvolání","odvolání zamítnuto \na napadené rozhodnutí potvrzeno","odvolání vyřízeno \nv rámci autoremedury","rozhodnutí změněno","rozhodnutí zrušeno a věc vrácena k novému projednání","rozhodnutí zrušeno a řízení zastaveno"]
[null,null,null,null,null,null,null,null,"oznámení o zahájení řízení","příkaz","příkaz na místě","rozhodnutí","příkaz","příkaz na místě"]
[null,11,1,null,null,null,42,31,1,14,null,null,14,null,null,null,null,null,8,6,3500]
[null,null,2]

{"sheet":" Zákon č. 324 -2016  Sb. ","index":20,"n_rows":36,"n_cols":33,"rows_kept":36,"cut":false,"hidden":false,"merged":[[1,1,1,32],[2,1,2,32],[3,1,4,1],[3,2,4,2],[3,3,4,3],[3,4,4,4],[3,5,4,5],[3,6,4,6],[3,7,4,7],[3,8,3,10],[3,11,3,13],[3,14,4,14],[3,15,4,15],[3,16,4,16],[3,17,4,17],[3,18,4,18],[3,19,4,19],[3,20,4,20],[3,21,4,21],[3,22,4,22],[3,23,4,23],[3,24,4,24],[3,31,4,31],[3,32,4,32],[3,25,4,25],[3,26,4,26],[3,27,4,27],[3,28,4,28],[3,29,4,29],[3,30,4,30]]}
[]
[null,"PŘEHLED PŘESTUPKŮ ZA ROK 2018"]
[null,"Zákon č. 324/2016 Sb., o biocidních přípravcích a účinných látkách a o změně některých souvisejících zákonů (zákon o biocidech)"]
[null,"§","odst. ","písm.","bod","ve znění zákona \nč. ","počet podnětů \nk zahájení řízení \no přestupku","počet odložených věcí","počet zahájených řízení o přestupku",null,null,"počet pravomocných rozhodnutí o uznání obviněného vinným ze spáchání přestupku",null,null,"počet zastavených řízení ","počet rozhodnutí o schválení dohody o narovnání","počet pravomocných rozhodnutí, kterými bylo upuštěno od uložení správního trestu ","počet pravomocných rozhodnutí, kterými byla mimořádně snížena výměra pokuty","počet napomenutí","počet  pokut","průměrná výměra pokut (v Kč)","počet zákazů činnosti","celková délka uložených zákazů činnosti (v letech)","počet propadnutí věci nebo náhradní hodnoty","počet zveřejnění rozhodnutí o přestupku","počet omezujících opatření","počet zabrání věci nebo náhradní hodnoty","počet podaných odvolání","odvolání zamítnuto \na napadené rozhodnutí potvrzeno","odvolání vyřízeno \nv rámci autoremedury","rozhodnutí změněno","rozhodnutí zrušeno a věc vrácena k novému projednání","rozhodnutí zrušeno a řízení zastaveno"]
[null,null,null,null,null,null,null,null,"oznámení o zahájení řízení","příkaz","příkaz na místě","rozhodnutí","příkaz","příkaz na místě"]
[null,10,1,"a"]
[null,null,null,"b"]
[null,null,null,"c"]
[null,11,1,"a","1."]
[null,null,null,null,"2."]
[null,null,null,null,"3."]
[null,null,null,null,"4."]
[null,null,null,null,"5."]
[null,null,null,null,"6."]
[null,null,null,null,"7."]
[null,null,null,null,"8."]
[null,null,null,"b"]
[null,null,null,"c"]
[null,null,null,"d"]
[null,null,null,"e"]
[null,null,null,"f",null,null,null,null,null,8,null,null,8,null,null,null,null,null,null,8,15750]
[null,null,null,"g"]
[null,null,null,"h",null,null,null,null,null,1,null,null,1,null,null,null,null,null,null,1,20000]
[null,null,null,"i",null,null,null,null,null,1,null,null,1,null,null,null,null,null,null,1,30000]
[null,null,null,"j"]
[null,null,null,"k"]
[null,null,null,"l"]
[null,null,null,"m"]
[null,null,null,"n"]
[null,null,null,"o"]
[null,null,null,"p"]
[null,null,null,"q"]
[null,null,null,"r"]
[null,null,null,"s"]
[null,null,null,"t"]
[null,null,null,"u"]

{"sheet":"Zákon č. 65 -2017 Sb.","index":21,"n_rows":69,"n_cols":33,"rows_kept":69,"cut":false,"hidden":false,"merged":[[3,7,4,7],[3,8,3,10],[3,11,3,13],[3,14,4,14],[3,15,4,15],[3,16,4,16],[3,31,4,31],[3,32,4,32],[1,1,1,32],[2,1,2,32],[3,1,4,1],[3,2,4,2],[3,3,4,3],[3,4,4,4],[3,5,4,5],[3,6,4,6],[3,17,4,17],[3,26,4,26],[3,27,4,27],[3,28,4,28],[3,29,4,29],[3,18,4,18],[3,19,4,19],[3,30,4,30],[3,21,4,21],[3,22,4,22],[3,23,4,23],[3,24,4,24],[3,25,4,25]]}
[]
[null,"PŘEHLED PŘESTUPKŮ ZA ROK 2018"]
[null,"Zákon č. 65/2017 Sb., o ochraně zdraví před škodlivými účinky návykových látek"]
[null,"§","odst. ","písm.","bod","ve znění zákona \nč. ","počet podnětů \nk zahájení řízení \no přestupku","počet odložených věcí","počet zahájených řízení o přestupku",null,null,"počet pravomocných rozhodnutí o uznání obviněného vinným ze spáchání přestupku",null,null,"počet zastavených řízení ","počet rozhodnutí o schválení dohody o narovnání","počet pravomocných rozhodnutí, kterými bylo upuštěno od uložení správního trestu ","počet pravomocných rozhodnutí, kterými byla mimořádně snížena výměra pokuty","počet napomenutí","počet  pokut","průměrná výměra pokut (v Kč)","počet zákazů činnosti","celková délka uložených zákazů činnosti (v letech)","počet propadnutí věci nebo náhradní hodnoty","počet zveřejnění rozhodnutí o přestupku","počet omezujících opatření","počet zabrání věci nebo náhradní hodnoty","počet podaných odvolání","odvolání zamítnuto \na napadené rozhodnutí potvrzeno","odvolání vyřízeno \nv rámci autoremedury","rozhodnutí změněno","rozhodnutí zrušeno a věc vrácena k novému projednání","rozhodnutí zrušeno a řízení zastaveno"]
[null,null,null,null,null,null,null,null,"oznámení o zahájení řízení","příkaz","příkaz na místě","rozhodnutí","příkaz","příkaz na místě"]
[null,35,1,"a",null,null,54,5,6,3,55,null,8,55,1,null,null,null,4,68,{"$f":"#REF!/T6","v":{"$error":"#REF!"}}]
[null,null,null,"b",null,null,144,23,21,26,21,8,29,21,8,null,null,null,8,53,{"$f":"#REF!/T7","v":{"$error":"#REF!"}},null,null,1,1]
[null,null,null,"c",null,null,12,5,2,2,1,2,2,1,null,null,null,null,null,6,{"$f":"#REF!/T8","v":{"$error":"#REF!"}},null,null,null,1]
[null,null,null,"d",null,null,null,null,null,null,null,1,null,null,null,null,null,null,null,1,{"$f":"#REF!/T9","v":{"$error":"#REF!"}}]
[null,null,null,"e",null,null,1398,51,106,339,3923,22,354,4044,7,null,null,null,337,4260,{"$f":"#REF!/T10","v":{"$error":"#REF!"}},null,null,1,7,null,1,2]
[null,null,null,"f",null,null,23,1,null,null,9,null,1,27,null,null,null,null,1,29,{"$f":"#REF!/T11","v":{"$error":"#REF!"}}]
[null,null,null,"g",null,null,28,2,2,4,31,4,7,37,null,null,null,null,3,45,{"$f":"#REF!/T12","v":{"$error":"#REF!"}},null,null,1]
[null,null,null,"h",null,null,2,null,null,1,null,null,1,null,null,null,null,null,1]
[null,null,null,"i",null,null,2,null,null,null,null,1,4,null,null,null,null,null,null,4,{"$f":"#REF!/T14","v":{"$error":"#REF!"}}]
[null,null,null,"j",null,null,861,294,151,181,88,88,203,86,50,null,1,1,42,5622,{"$f":"#REF!/T15","v":{"$error":"#REF!"}},null,null,null,9,null,2,1]
[null,null,null,"k",null,null,5,4,null,null,2,null,null,2,null,null,null,null,null,1,{"$f":"#REF!/T16","v":{"$error":"#REF!"}}]
[null,null,null,"l",null,null,30,7,5,4,3,1,3,4,4,null,null,null,null,8,{"$f":"#REF!/T17","v":{"$error":"#REF!"}}]
[null,null,null,"m",null,null,2,null,null,2,null,null,2,null,null,null,null,null,null,2,{"$f":"#REF!/T18","v":{"$error":"#REF!"}}]
[null,null,null,"n",null,null,346,46,19,145,169,5,152,168,1,null,null,null,23,303,{"$f":"#REF!/T19","v":{"$error":"#REF!"}},null,null,null,1,null,null,1,null,null,1,1]
[null,null,null,"o","1.",null,13,1,1,4,1,null,4,1,null,null,null,null,null,5,{"$f":"#REF!/T20","v":{"$error":"#REF!"}},1,1,null,1]
[null,null,null,null,"2.",null,22,3,4,8,6,3,7,7,2,null,null,null,1,12,{"$f":"#REF!/T21","v":{"$error":"#REF!"}},null,null,null,1]
[null,null,null,"p",null,null,128,15,12,66,15,8,61,14,2,null,null,null,5,75,{"$f":"#REF!/T22","v":{"$error":"#REF!"}},null,null,null,3,null,null,4,2,null,1,2]
[null,36,1,"a",null,null,3,null,1,2,2,null,3,2,null,null,null,null,null,5,{"$f":"#REF!/T23","v":{"$error":"#REF!"}}]
[null,null,null,"b",null,null,4,null,2,null,1,1,1,1,1,null,null,null,null,2,{"$f":"#REF!/T24","v":{"$error":"#REF!"}}]
[null,null,null,"c",null,null,50,6,10,19,4,4,19,4,3,null,null,null,1,27,{"$f":"#REF!/T25","v":{"$error":"#REF!"}},null,null,null,null,null,null,1,null,null,null,1]
[null,null,null,"d",null,null,null,1,null,12,null,null,12,null,null,null,null,null,null,5,{"$f":"#REF!/T26","v":{"$error":"#REF!"}}]
[null,null,null,"e",null,null,1]
[null,null,null,"f",null,null,1,null,2,3,1,1,3,1,null,null,null,null,null,2,{"$f":"#REF!/T28","v":{"$error":"#REF!"}}]
[null,null,null,"g",null,null,58,3,57,180,176,18,191,179,null,null,null,null,5,257,{"$f":"#REF!/T29","v":{"$error":"#REF!"}},null,null,null,null,null,null,4,null,null,2,2]
[null,null,null,"h",null,null,3,1,1,5,3,1,5,3,null,null,null,null,null,6,{"$f":"#REF!/T30","v":{"$error":"#REF!"}},null,null,null,null,null,null,1,null,null,1]
[null,null,null,"i",null,null,null,null,null,17,null,null,15,null,null,null,null,null,1,5,{"$f":"#REF!/T31","v":{"$error":"#REF!"}},null,null,null,null,null,null,2,null,null,1]
[null,null,null,"j",null,null,15,7,6,5,5,5,1,6,3,null,null,null,null,11,{"$f":"#REF!/T32","v":{"$error":"#REF!"}},null,null,2]
[null,null,null,"k",null,null,1,1]
[null,null,null,"l",null,null,70,30,20,285,5,9,256,7,11,null,null,null,2,256,{"$f":"#REF!/T34","v":{"$error":"#REF!"}},null,null,null,null,null,null,13,3,null,6]
[null,null,null,"m"]
[null,null,null,"n",null,null,5,3,null,1,1,null,1,1,null,null,null,null,null,2,{"$f":"#REF!/T36","v":{"$error":"#REF!"}}]
[null,null,null,"o",null,null,2,null,2,null,5,2,null,5,null,null,null,null,null,6,{"$f":"#REF!/T37","v":{"$error":"#REF!"}},null,null,null,null,null,null,1,1]
[null,null,null,"p",null,null,131,null,4,176,179,360,null,357,null,null,null,null,100,260,{"$f":"#REF!/T38","v":{"$error":"#REF!"}}]
[null,null,null,"q",null,null,1]
[null,null,null,"r"]
[null,null,2,"a",null,null,1]
[null,null,null,"b"]
[null,null,null,"c"]
[null,null,null,"d"]
[null,null,null,"e"]
[null,null,3,"a"]
[null,null,null,"b"]
[null,null,null,"c"]
[null,null,4,"a",null,null,null,null,null,null,1,null,null,1,null,null,null,null,null,1,{"$f":"#REF!/T49","v":{"$error":"#REF!"}}]
[null,null,null,"b",null,null,null,null,null,null,1,null,null,1,null,null,null,null,null,1,{"$f":"#REF!/T50","v":{"$error":"#REF!"}}]
[null,null,null,"c",null,null,2,null,null,2,null,null,2,null,null,null,null,null,null,2,{"$f":"#REF!/T51","v":{"$error":"#REF!"}},null,null,1]
[null,null,null,"d"]
[null,null,null,"e"]
[null,null,null,"f"]
[null,null,null,"g"]
[null,null,null,"h"]
[null,null,5,"a"]
[null,null,null,"b",null,null,null,null,1,null,6,1,null,2,null,null,null,null,2,1,{"$f":"#REF!/T58","v":{"$error":"#REF!"}}]
[null,null,null,"c"]
[null,null,6,"a"]
[null,null,null,"b"]
[null,null,null,"c"]
[null,null,7,"a",null,null,2,1,null,null,null,null,null,1,null,null,null,null,null,1,{"$f":"#REF!/T63","v":{"$error":"#REF!"}}]
[null,null,null,"b"]
[null,null,null,"c"]
[null,null,8,"a",null,null,31,32,7,28,28,5,28,37,1,null,null,null,5,68,{"$f":"#REF!/T66","v":{"$error":"#REF!"}},null,null,null,null,null,null,6,2,null,1,2,1]
[null,null,null,"b",null,null,34,5,5,37,77,6,66,72,1,null,null,null,10,84,{"$f":"#REF!/T67","v":{"$error":"#REF!"}},null,null,null,null,null,null,4,1,null,1,1,1]
[null,null,9,"a"]
[null,null,null,"b"]